Cogmind - Beta 13 X1 @@@ ROGUE MODE // 2023.09.21 @ 23:02:22 Player: deadnoob Result: Destroyed by G-67 Veteran with Plasma Rifle Performance ------------- Evolutions (7) 3500 Regions Visited (34) 6800 Robots Destroyed (463) 2315 Value Destroyed (22427) 22427 Prototype IDs (92) 1840 Alien Tech Used (12) 2400 Bonus (18932) 18932 TOTAL SCORE: 58214 Bonus ------- Triggered High Security 500 Triggered Max Security 1000 High Alert Combat Kills 3144 Follower Combat Kills 3911 Network Hubs Disabled 200 Aligned with FarCom 300 Met Imprinter 300 Destroyed Z-Imprinter 1000 Triggered Deep Caves Wall 500 Exposed GOLEM Chamber 500 Met Zhirov 300 Met Warlord at Base 500 MAIN.C Attacked Warlord 500 Built Enhanced Grunts 300 A7 Reached Mainframe 300 Met R17 at Cetus 500 Used Core Reset Matrix 3000 Met R17 at Research 2000 Integrated Exoskeleton 5000 Friendly Fire -4823 Cogmind --------- Core Integrity 0/1300 Matter 247/300 Energy 240/250 System Corruption 31% Temperature Cool (12) Movement Walking (30) Location -3/Section 7 Parts ------- > --- POWER (1) -------- Micro Antimatter Reactor > --- PROPULSION (3) --- Sigix Exoskeleton > --- UTILITY (3) ------ Heavy Armor Plating > --- WEAPON (2) ------- Sigix Sheargun Sigix Sheargun > --- INVENTORY (5) ---- Transdimensional Reconstructor Core Stripper Peak State ------------ > --- POWER ------------ Micro Antimatter Reactor Vortex Chain Reactor > --- PROPULSION ------- High-density Centrium Heavy Treads High-density Centrium Heavy Treads High-density Centrium Heavy Treads > --- UTILITY ---------- High-capacity Storage Unit Assembled Biocell Array Long-range Sensor Array Advanced Signal Interpreter Assembled Combat Suite Centrium Heavy Armor Plating Experimental Force Field GOLEM Unit > --- WEAPON ----------- Sigix Broadsword > --- INVENTORY -------- Coolant Network Advanced Coolant Injector Zionite Biocell Zionite Biocell Zionite Biocell Quantum Capacitor Hardened Heavy Armor Plating Advanced Component Analysis Suite Long-range Tractor Beam Subatomic Replicator Vortex Shotgun Vortex Shotgun Compact HERF Cannon Core Stripper [Rating: 204] Favorites ----------- Power Assembled Flux Generator Engine Ion Engine Power Core Enhanced Nuclear Core Reactor Assembled Flux Generator Propulsion Centrium Heavy Treads Treads Centrium Heavy Treads Leg Assembled Alloy Leg Hover Unit Zionite Glidesys I Utility High-capacity Storage Unit Device GOLEM Unit Storage High-capacity Storage Unit Processor Advanced Signal Interpreter Hackware Hacking Suite Protection Assembled Alloy Armor Artifact Phase Redirector Weapon Assembled Focal Cannon Energy Gun Small Laser Energy Cannon Assembled Focal Cannon Ballistic Gun Improved Assault Rifle Ballistic Cannon Light Cannon Launcher Missile Launcher Special Weapon Plasma Cutter Impact Weapon Powered Hammer Slashing Weapon Sigix Broadsword Special Melee Weapon Datajack Build | -11 -10 -10 -9 -9 -9 -8 -8 -7 -7 -7 -7 -7 -7 -7 -6 -6 -6 -6 -6 -6 -5 -5 -5 -5 -5 -5 -4 -4 -4 -4 -3 -3 -3 -3 ------- Run | Jun Mat Min Mat Min Exi Min Mat Fac Was Fac Low Low Zio Dee Pro Fac Ext Cet Arc Hub Fac Was Fac Upp Upp Zhi Pro Fac Upp War Pro Res Qua Sec Slots Evolved 14 | . . . 2 . . . 2 2 . . . . . . . 2 . . . . 2 . . . . . . 2 . . . 2 . . Power 2 | . . . . . . . . 1 . . . . . . . . . . . . . . . . . . . 1 . . . . . . Propulsion 4 | . . . 1 . . . 1 . . . . . . . . . . . . . . . . . . . . . . . . 2 . . Utility 8 | . . . 1 . . . 1 1 . . . . . . . 2 . . . . 2 . . . . . . 1 . . . . . . Weapon . | . . . . . . . . . . . . . . . . . . . . . . . . . . . . . . . . . . . Parts Attached 414 | 1 7 9 15 9 13 . 30 3 7 30 6 4 5 57 6 6 12 5 9 3 8 7 5 5 5 5 6 18 8 10 2 11 42 45 Power 26 | . . . 1 1 1 . 1 . . 3 . . . 4 . . . . . . . . . . . . . 1 . 1 . 2 4 7 Engine 2 | . . . 1 1 . . . . . . . . . . . . . . . . . . . . . . . . . . . . . . Core 7 | . . . . . 1 . 1 . . 3 . . . 2 . . . . . . . . . . . . . . . . . . . . Reactor 17 | . . . . . . . . . . . . . . 2 . . . . . . . . . . . . . 1 . 1 . 2 4 7 Propulsion 73 | . 2 2 5 3 3 . 9 . 2 5 . . 1 6 3 3 7 2 3 1 2 1 2 . . . . 3 . . . 2 4 2 Treads 56 | . 2 2 5 3 . . 6 . 2 5 . . 1 3 1 1 3 2 3 1 2 1 2 . . . . 3 . . . 2 4 2 Leg 15 | . . . . . 3 . 2 . . . . . . 2 2 2 4 . . . . . . . . . . . . . . . . . Wheel . | . . . . . . . . . . . . . . . . . . . . . . . . . . . . . . . . . . . Hover 2 | . . . . . . . 1 . . . . . . 1 . . . . . . . . . . . . . . . . . . . . Flight . | . . . . . . . . . . . . . . . . . . . . . . . . . . . . . . . . . . . Utility 193 | . 3 1 4 2 2 . 11 2 2 8 1 1 . 32 3 3 2 3 6 1 6 6 3 2 . 5 4 14 7 8 1 5 29 16 Device 114 | . 2 1 2 2 . . 7 1 . 7 1 1 . 13 2 1 . . 4 1 2 3 . 2 . 4 2 10 5 7 1 1 19 13 Storage 10 | . 1 . . . 2 . . . . 1 . . . 3 . . . . . . 1 . . . . 1 . . . . . 1 . . Processor 5 | . . . 1 . . . . . . . . . . 2 . . . . . . . . . . . . . 1 . . . 1 . . Hackware 2 | . . . . . . . 2 . . . . . . . . . . . . . . . . . . . . . . . . . . . Protection 61 | . . . 1 . . . 2 1 2 . . . . 14 1 2 2 3 2 . 3 3 3 . . . 2 3 2 1 . 2 9 3 Artifact 1 | . . . . . . . . . . . . . . . . . . . . . . . . . . . . . . . . . 1 . Weapon 122 | 1 2 6 5 3 7 . 9 1 3 14 5 3 4 15 . . 3 . . 1 . . . 3 5 . 2 . 1 1 1 2 5 20 Energy Gun 11 | . 1 . . . . . 2 . . . . . . 2 . . . . . . . . . . . . . . . 1 . . . 5 Energy Cannon 35 | . . . . . . . 1 1 1 8 2 1 1 6 . . . . . . . . . 1 3 . 1 . . . . . 1 8 Ballistic Gun 18 | 1 . 1 5 2 2 . 4 . . 3 . . . . . . . . . . . . . . . . . . . . . . . . Ballistic Cannon 5 | . . 3 . . . . 1 . . 1 . . . . . . . . . . . . . . . . . . . . . . . . Launcher 35 | . 1 2 . 1 2 . 1 . 2 2 2 2 2 4 . . 3 . . 1 . . . 2 2 . 1 . 1 . 1 2 1 . Special Weapon 1 | . . . . . 1 . . . . . . . . . . . . . . . . . . . . . . . . . . . . . Impact Weapon 6 | . . . . . . . . . . . 1 . 1 3 . . . . . . . . . . . . . . . . . . 1 . Slashing Weapon 10 | . . . . . 1 . . . . . . . . . . . . . . . . . . . . . . . . . . . 2 7 Piercing Weapon . | . . . . . . . . . . . . . . . . . . . . . . . . . . . . . . . . . . . Special Melee Weapon 1 | . . . . . 1 . . . . . . . . . . . . . . . . . . . . . . . . . . . . . Unidentified Prototypes 37 | . . . 1 . . . 1 . . 2 . . 1 11 . . . 2 . . . . . . . 3 . . . 7 . . 7 2 Corrupted Parts 2 | . . . . . . . . . . . . . . . . . . . 1 . . . . . . . . . . . . . 1 . System Corruption 4 | . . . . . . . . . . . . . . . . . . . 2 . . . . . . . . . . . . . 2 . Parts Lost 68 | . . 1 1 6 2 . 3 . . . . . . 8 2 . 2 . . 4 . . . . . . 1 3 1 . . 2 15 17 Power 8 | . . . . 1 . . . . . . . . . . . . . . . . . . . . . . . . . . . 1 3 3 Propulsion 14 | . . . . 3 1 . . . . . . . . . 1 . . . . 1 . . . . . . . . . . . . 3 5 Utility 36 | . . 1 1 1 . . 1 . . . . . . 8 1 . 2 . . 1 . . . . . . 1 3 1 . . 1 7 7 Weapon 10 | . . . . 1 1 . 2 . . . . . . . . . . . . 2 . . . . . . . . . . . . 2 2 Highest Loss Streak 14 | . . 1 1 6 2 . 2 . . . . . . 2 2 . 1 . . 4 . . . . . . 1 2 1 . . 2 3 14 To Critical Strikes 7 | . . . . . 1 . . . . . . . . . . . . . . 1 . . . . . . . . . . . . 2 3 Average Slot Usage (%) 76 | . 98 100 98 91 99 100 99 92 84 83 84 84 83 80 77 85 80 73 72 73 73 73 68 64 64 63 69 75 74 77 77 74 71 62 Engine 1 | . 14 14 11 4 7 . . . 4 4 . . . . . . . . . . . . . . . . . . . . . . . . Core 2 | . . . . . 3 11 8 7 7 9 15 15 15 9 . . . . . . . . . . . . . . . . . . . . Reactor 4 | . . . . . . . . . . . . . . 2 7 6 6 6 6 6 4 4 5 5 5 5 5 10 10 10 10 7 6 8 Treads 14 | . 20 28 33 33 23 . 24 30 20 22 23 23 23 13 4 2 7 8 13 13 11 12 11 11 11 11 11 10 10 10 10 14 12 12 Leg 3 | . 7 . . . 9 33 11 . . . . . . 5 18 23 18 10 . . . . . . . . . . . . . . 2 . Device 14 | . 12 14 17 13 22 22 18 15 15 15 15 15 15 12 15 12 7 6 6 6 20 20 15 11 11 10 13 21 24 25 21 16 18 16 Storage 10 | . 14 14 11 11 11 11 9 7 7 7 7 7 7 8 15 13 13 13 12 13 10 11 11 11 11 11 11 10 9 10 10 9 9 8 Protection 9 | . . . 1 . . . 4 15 13 7 7 7 7 5 . 12 12 14 19 19 11 11 11 11 11 11 13 11 8 10 15 14 6 5 Energy Cannon 8 | . . . . . . . . 4 4 10 14 12 7 8 15 13 12 13 12 12 10 9 11 10 10 11 8 10 8 9 9 7 7 . Ballistic Gun 1 | . 14 3 15 21 15 22 13 10 . 3 . . . . . . . . . . . . . . . . . . . . . . . . Naked Turns . | . . . . . . . . . . . . . . . . . . . . . . . . . . . . . . . . . . . Heaviest Build 186 | 12 29 33 36 34 70 70 76 80 110 123 110 110 110 116 118 132 137 137 131 131 136 157 178 178 173 173 173 186 164 160 160 160 146 152 Greatest Support 270 | 20 40 40 60 60 80 80 100 92 140 140 114 114 120 140 60 90 110 160 160 160 180 150 150 150 150 150 150 150 170 150 150 220 250 270 Greatest Overweight (x) 43 | . . . . . 1 . 1 . . 1 . . . 3 1 2 2 2 43 . 1 1 1 1 1 1 1 1 1 1 1 . 4 . Average Overweight (x) . | . . . . . . . . . . . . . . . 1 1 1 1 23 . . . . 1 1 1 1 1 . . . . . . Largest Inventory Capacity 20 | 8 15 15 15 15 20 20 20 20 20 20 20 20 20 20 20 20 20 20 20 20 20 20 20 20 20 20 20 20 20 20 20 20 20 20 Average Capacity 19 | 8 10 15 15 15 15 20 20 20 20 20 20 20 20 17 20 20 20 20 20 20 18 20 20 20 20 20 20 20 20 20 20 20 20 18 Most Carried 20 | 6 15 15 15 15 19 19 20 19 20 20 20 20 20 20 20 20 20 20 20 20 20 20 20 20 20 20 20 20 20 20 19 20 20 20 Average Carried 18 | 6 8 14 14 11 14 19 19 19 19 19 19 19 19 15 19 19 19 19 19 19 16 19 19 19 19 19 18 19 18 18 18 18 19 17 Final Capacity 20 | 8 15 15 15 15 20 20 20 20 20 20 20 20 20 20 20 20 20 20 20 20 20 20 20 20 20 20 20 20 20 20 20 20 20 5 Final Carried 20 | 6 15 14 15 13 19 19 20 19 20 20 19 20 20 20 20 20 20 20 20 15 20 20 20 20 20 20 17 19 18 20 19 20 20 3 Class Distribution -------------------- 47% | Mutant 19% | Golem 13% | Commander-Golem 10% | Scavenger-Mutant 3% | Scavenger-Golem 3% | Alien-Mutant Dominant Class ---------------- Mutant | -10/Materials Mutant | -10/Mines Mutant | -9/Materials Mutant | -9/Mines Mutant | -9/Exiles Scavenger-Mutant | -8/Mines Mutant | -8/Materials Scavenger-Mutant | -7/Factory Scavenger-Mutant | -7/Waste Mutant | -7/Factory Mutant | -7/Lower Caves Mutant | -7/Lower Caves Mutant | -7/Zion Scavenger-Mutant | -7/Deep Caves Golem | -6/Proximity Caves Golem | -6/Factory Commander-Golem | -6/Extension Commander-Golem | -6/Cetus Commander-Golem | -6/Archives Scavenger-Golem | -6/Hub_04(d) Scavenger-Golem | -5/Factory Golem | -5/Waste Golem | -5/Factory Mutant | -5/Upper Caves Mutant | -5/Upper Caves Mutant | -5/Zhirov Mutant | -4/Proximity Caves Mutant | -4/Factory Golem | -4/Upper Caves Golem | -4/Warlord Scavenger-Mutant | -3/Proximity Caves Scavenger-Mutant | -3/Research Mutant | -3/Quarantine Alien-Mutant | -3/Section 7 Resources | -11 -10 -10 -9 -9 -9 -8 -8 -7 -7 -7 -7 -7 -7 -7 -6 -6 -6 -6 -6 -6 -5 -5 -5 -5 -5 -5 -4 -4 -4 -4 -3 -3 -3 -3 ----------- Run | Jun Mat Min Mat Min Exi Min Mat Fac Was Fac Low Low Zio Dee Pro Fac Ext Cet Arc Hub Fac Was Fac Upp Upp Zhi Pro Fac Upp War Pro Res Qua Sec Matter Collected 7828 | 210 133 441 422 175 351 . 737 . 764 348 134 86 59 886 50 250 222 50 90 56 276 70 50 66 154 . 175 150 176 132 54 165 232 664 Remotely 20 | . . . . . . . . . . . . . . . . . . . . . . . . . . . . . 20 . . . . . Salvage Created 25351 | . 277 103 573 135 285 . 1047 . 1087 985 339 156 . 1415 827 355 1517 140 259 1215 663 576 2040 942 1060 . 743 1206 1171 . 913 749 2259 2314 Parts 1193 | . 27 16 40 12 44 . 58 . 1 43 14 10 . 50 18 15 74 8 23 48 49 12 81 42 48 . 29 68 40 . 37 30 118 138 Haulers Intercepted 10 | . . . 1 . . . 2 . . 5 . . . . . . . . . . . . 2 . . . . . . . . . . . Recyclers Shooed 12 | . 1 . 2 . . . 4 . . 1 . . . . . . . . . . 1 . . . . . . 1 . . . . 2 . Parts Field Recycled . | . . . . . . . . . . . . . . . . . . . . . . . . . . . . . . . . . . . Retrieved Matter . | . . . . . . . . . . . . . . . . . . . . . . . . . . . . . . . . . . . Parts Self-Destructed 180 | . . . . . . . . . . . 14 10 . . 10 . . . . . . . . 34 33 . 15 . 37 . 27 . . . Prevented 38 | . . . . . . . . . . . . . . . . . . . . . . . . 4 15 . 9 . 2 . 8 . . . Kills | -11 -10 -10 -9 -9 -9 -8 -8 -7 -7 -7 -7 -7 -7 -7 -6 -6 -6 -6 -6 -6 -5 -5 -5 -5 -5 -5 -4 -4 -4 -4 -3 -3 -3 -3 ------- Run | Jun Mat Min Mat Min Exi Min Mat Fac Was Fac Low Low Zio Dee Pro Fac Ext Cet Arc Hub Fac Was Fac Upp Upp Zhi Pro Fac Upp War Pro Res Qua Sec Combat Hostiles Destroyed 432 | . 9 16 12 5 4 . 27 . 5 11 6 8 . 58 7 5 25 2 1 20 11 . 29 18 20 . 11 19 16 . 14 10 30 33 Melee 28 | . . . . . 1 . . . . . . . . 1 . . . . . . . . . . . . . . . . . . . 26 Guns 36 | . 4 . 10 1 . . 19 . . . . . . . . . . . . . . . . . . . . . . . . . . 2 Cannons 212 | . . 4 2 . . . 2 . . 5 5 1 . 11 7 5 19 2 1 15 11 . 25 12 9 . 5 19 14 . 10 2 26 . AOE 133 | . 5 12 . 4 3 . 6 . 5 5 1 7 . 42 . . 6 . . 5 . . 4 4 10 . 4 . 1 . 2 6 1 . Classes Destroyed 31 | . 6 1 4 . 2 . . . 1 4 4 . . 3 2 . . . . 1 . . 1 . . . . . . . . . 1 1 Worker 14 | . 1 . . 2 . . 3 . . 2 . . . . . . 1 . . 1 1 . . . . . . . . . . 1 2 . Builder 14 | . 1 2 1 1 . . . . . . . . . . . . 2 . . 1 1 . . . . . . 1 . . . 1 2 1 Tunneler 2 | . . . 1 . . . . . . . . . . . . . . . . 1 . . . . . . . . . . . . . . Hauler 10 | . . . 1 . . . 2 . . 5 . . . . . . . . . . . . 2 . . . . . . . . . . . Recycler 8 | . 1 . . 1 . . 1 . . 1 . . . . . . 1 . . 1 1 . . . . . . 1 . . . . . . Minesweeper 1 | . . . . . . . . . . . . . . . 1 . . . . . . . . . . . . . . . . . . . Mechanic 1 | . . . . . . . . . . . . . . . . . . . . . . . 1 . . . . . . . . . . . Operator 10 | . 1 . . . . . 1 . . . . . . . . 1 . . 6 . . . 1 . . . . . . . . . . . Turret 1 | . . . . . 1 . . . . . . . . . . . . . . . . . . . . . . . . . . . . . Watcher 8 | . . . . . . . . . . 1 . . . . . 1 2 . . 1 . . . . . . . 1 . . . 1 1 . Swarmer 86 | . 5 6 . 4 . . 10 . . . . 7 . . 2 . 6 . . . 5 . . 6 8 . 3 4 2 . 4 4 4 6 Grunt 122 | . 4 . 7 . . . 13 . . 8 3 . . . 3 2 10 . . 8 1 . 16 9 4 . 6 4 8 . 6 4 . 6 Brawler 10 | . . . . . . . . . . . 1 . . . 2 . . . . 1 . . 2 . . . 1 . 2 . . . . 1 Duelist 9 | . . . 2 . . . 1 . . . . . . . 1 1 . . . . . . 1 . . . . . 1 . . . 2 . Protector 2 | . . . . . . . . . . 1 . . . . . . . . . 1 . . . . . . . . . . . . . . Researcher 1 | . . . . . . . . . . . . . . . . . . . . . . . . . . . . . . . . . . 1 Sentry 32 | . . . 3 . . . 3 . . 1 . 1 . . 1 1 5 . 1 4 2 . . 2 1 . . 1 1 . 1 1 . 3 Specialist 10 | . . . . . . . . . . . . . . . . . . . . 2 . . . . 3 . . . . . . . 3 2 Hunter 23 | . . . . . . . . . . . 1 . . . . . 1 . . . . . 1 1 2 . . 2 2 . 2 1 10 . Programmer 49 | . . . . . . . . . . 1 . . . . . 1 . . . 1 3 . 9 . 1 . . 8 . . 1 . 10 14 Behemoth 5 | . . . . . . . . . . . 1 . . . . . 1 . . 1 . . . . 1 . 1 . . . . . . . Compactor 5 | . . . . . . . . . 5 . . . . . . . . . . . . . . . . . . . . . . . . . Cetus Guard 2 | . . . . . . . . . . . . . . . . . . 2 . . . . . . . . . . . . . . . . S7 Guard 1 | . . . . . . . . . . . . . . . . . . . . . . . . . . . . . . . . . . 1 Lightning 2 | . . . . . . . . . . . . . . . . . . . . 2 . . . . . . . . . . . . . . Fortress 1 | . . . . . . . . . . . . . . . . . . . . . . . . . . . . . . . . . 1 . Zionite 5 | . . . . . 5 . . . . . . . . . . . . . . . . . . . . . . . . . . . . . Z-Light 8 | . . . . . . . . . . . . . . 8 . . . . . . . . . . . . . . . . . . . . Samaritan 3 | . . . . . . . . . . . . . . . 3 . . . . . . . . . . . . . . . . . . . Tinkerer 1 | . . . . . . . . . . . 1 . . . . . . . . . . . . . . . . . . . . . . . Assembler 2 | . . . . . . . . . . . . . . 2 . . . . . . . . . . . . . . . . . . . . Assembled 56 | . . 10 . . 3 . . . . . . . . 43 . . . . . . . . . . . . . . . . . . . . Golem 6 | . . . . . . . . . . . . . . 6 . . . . . . . . . . . . . . . . . . . . Wasp 2 | . . . . . . . . . . 1 . . . . . . . . . . . . 1 . . . . . . . . . . . Thug 2 | . . . . . . . . . . . . . . . . . . . . . . . 2 . . . . . . . . . . . Butcher 2 | . . . . . . . . . . . . . . . . . 2 . . . . . . . . . . . . . . . . . Martyr 3 | . . . . . . . . . . 2 . . . . . . . . . . . 1 . . . . . . . . . . . . Guerrilla 1 | . . . . . . . . . . . . . . . . . 1 . . . . . . . . . . . . . . . . . Commander 1 | . . . . . . . . . . . . . . . . . . . . . . . . . . . . . 1 . . . . . Best Kill Streak 40 | . 4 7 4 4 4 . 7 . 3 7 4 4 . 40 7 3 4 2 4 8 6 . 10 6 5 . 4 6 7 . 4 4 7 4 Combat Bots Only 38 | . 3 6 3 4 3 . 6 . 3 5 4 4 . 38 7 3 4 2 1 8 4 . 10 6 5 . 4 5 7 . 4 4 5 4 Max Kills in Single Turn 12 | . 3 3 2 3 2 . 4 . 1 4 1 2 . 12 1 1 3 1 1 2 2 1 5 2 2 . 2 1 1 . 2 2 2 1 Gunslinging . | . . . . . . . . . . . . . . . . . . . . . . . . . . . . . . . . . . . Exploded 12 | . 1 3 . 3 2 . 3 . 1 3 1 2 . 12 . . 3 . . 1 . . 4 2 2 . 2 . 1 . 1 2 1 . Melee 1 | . . . . . 1 . . . . . . . . 1 . . . . . . . . . . . . . . . . . . . 1 Uniques/NPCs Destroyed 7 | . . . . 1 4 . . . . . . . . 1 . . . . . . . . . . . . . . . . . 1 . . YI-UF0 (-9/Mines) 8R-AWN (-9/Exiles) EX-HEX (-9/Exiles) EX-DEC (-9/Exiles) EX-BIN (-9/Exiles) Z-Imprinter (-7/Deep Caves) Revision 17++ (-3/Research) Combat | -11 -10 -10 -9 -9 -9 -8 -8 -7 -7 -7 -7 -7 -7 -7 -6 -6 -6 -6 -6 -6 -5 -5 -5 -5 -5 -5 -4 -4 -4 -4 -3 -3 -3 -3 -------- Run | Jun Mat Min Mat Min Exi Min Mat Fac Was Fac Low Low Zio Dee Pro Fac Ext Cet Arc Hub Fac Was Fac Upp Upp Zhi Pro Fac Upp War Pro Res Qua Sec Damage Taken 30144 | . 189 188 480 759 258 33 881 . . 289 145 81 . 3205 790 105 1522 80 37 3154 338 . 313 644 311 . 1171 1222 779 51 965 723 5407 6024 Core 2656 | . 63 . 64 83 73 . 150 . . 2 . 7 . 323 76 17 87 23 . 222 27 . 24 9 6 . 19 29 30 . 24 38 758 502 Absorbed by Shields 9193 | . 30 69 181 71 67 13 166 . . 95 55 36 . 772 78 42 342 17 . . 115 . 338 399 336 . 822 498 294 17 279 10 656 3395 Reduced by Siege Mode 1162 | . . . . . . . . . . . 3 . . 242 80 . . . . 197 . . 8 31 4 . 57 51 27 . 35 14 409 4 Redirected to Core 226 | . . . . . . . . . . . . . . . . . . . . . . . . . . . . . . . . . 226 . Redirected to Shielding 193 | . . . . . . . . . . . . . . 193 . . . . . . . . . . . . . . . . . . . . Ignored by Resistances 3396 | . . . . . . . . . . 22 35 61 . 13 . 32 386 19 7 577 92 . 144 216 246 . 403 359 160 13 257 156 77 121 Regen/Repaired (Parts) 2444 | . . . . . . . 19 . 252 113 94 35 2 561 . . . . . . . . . . . . . . . 348 . . . 1020 Core Remaining (%) 70 | 100 . 74 . . . 45 72 . . . . . . . 41 . . . . 58 . . . . . . 91 . . . 86 . . . Volleys Fired 1284 | . 31 18 44 14 34 1 87 2 19 52 20 8 . 65 34 18 72 8 23 91 27 6 87 47 53 . 70 64 53 23 23 38 101 51 Largest 2 | . 2 2 2 2 2 2 2 1 2 2 2 2 . 2 2 2 2 2 2 2 2 2 2 2 2 . 2 2 2 1 2 2 2 2 Hottest 200 | . 60 70 70 46 46 46 98 63 69 180 60 60 . 90 50 50 50 50 50 50 50 50 50 50 115 . 115 115 115 25 50 50 94 200 Shots Fired 2111 | . 56 28 88 26 61 2 170 2 35 87 37 10 . 105 66 31 130 16 46 139 49 12 140 76 74 . 96 98 92 23 41 55 165 55 Gun 356 | . 50 . 68 24 56 2 139 . . 1 . . . . . . . . . . . . . . . . . . . . . . . 16 Cannon 1598 | . . 20 20 . . . 27 2 3 82 34 5 . 85 66 31 126 16 46 130 49 12 140 70 60 . 86 98 88 23 37 45 158 39 Launcher 157 | . 6 8 . 2 5 . 4 . 32 4 3 5 . 20 . . 4 . . 9 . . . 6 14 . 10 . 4 . 4 10 7 . Special . | . . . . . . . . . . . . . . . . . . . . . . . . . . . . . . . . . . . Kinetic 380 | . 25 20 88 24 56 2 163 . . 2 . . . . . . . . . . . . . . . . . . . . . . . . Thermal 1486 | . 25 . . . . . 3 . . 69 34 5 . 67 66 31 126 16 46 130 49 12 140 70 60 . 86 98 88 23 37 45 153 7 Explosive 102 | . 6 8 . 2 5 . 4 . 32 4 3 5 . 20 . . 4 . . 9 . . . . . . . . . . . . . . Electromagnetic 127 | . . . . . . . . 2 3 12 . . . 18 . . . . . . . . . 6 14 . 10 . 4 . 4 10 12 32 Slashing 8 | . . . . . . . . . . . . . . . . . . . . . . . . . . . . . . . . . . 8 Entropic 8 | . . . . . . . . . . . . . . . . . . . . . . . . . . . . . . . . . . 8 Robot Hit Streak 42 | . 9 11 15 11 10 1 10 . 7 6 10 2 . 12 16 7 16 16 22 17 8 5 33 13 14 . 29 21 13 . 28 30 42 9 Robot Miss Streak 6 | . 3 3 3 2 2 1 6 . 1 4 3 2 . 2 2 1 3 . 4 2 3 1 4 3 2 . 1 2 2 . 1 . 2 4 Penetration Max 1 | . . . . . . . . . . . . . . . . . . . . . . . . . . . . . . . . . . 1 Secondary Targets 4 | . . . 1 . . . 3 . . . . . . . . . . . . . . . . . . . . . . . . . . . Max Gunslinging Chain 1 | . . . 1 . . . 1 . . . . . . . . . . . . . . . . . . . . . . . . . . . Capacitor 32 | . . . . . . . . . . . . . . . . . . . . . . . . . . . . . . . . . 5 27 Shots Hit Robots 1405 | . 36 14 70 18 62 1 124 . 20 44 20 2 . 84 32 20 83 13 28 102 25 7 79 40 36 . 48 58 58 . 32 27 116 106 Core Hits 867 | . 20 26 24 10 25 . 67 . 14 38 16 11 . 113 19 10 42 7 13 61 17 5 39 27 31 . 21 26 34 . 19 28 54 50 Critical Kills 1 | . . . . . . . . . . . . . . 1 . . . . . . . . . . . . . . . . . . . . Critical Parts Destroyed 4 | . 1 . . . . . 1 . . . . . . 2 . . . . . . . . . . . . . . . . . . . . Critical Strikes 13 | . 1 . . . 1 . 1 . . . . . . 3 . . . . . . . . . . . . . . . . . . . 7 Destroy 2 | . 1 . . . . . 1 . . . . . . . . . . . . . . . . . . . . . . . . . . . Smash 3 | . . . . . . . . . . . . . . 3 . . . . . . . . . . . . . . . . . . . . Sever 8 | . . . . . 1 . . . . . . . . . . . . . . . . . . . . . . . . . . . . 7 Melee Attacks 186 | . . . . . 21 . . . . . 16 . 8 16 . . . . . . . . . . . . . . . . . . 6 119 Kinetic 5 | . . . . . . . . . . . . . . . . . . . . . . . . . . . . . . . . . 5 . Impact 40 | . . . . . . . . . . . 16 . 8 16 . . . . . . . . . . . . . . . . . . . . Slashing 137 | . . . . . 17 . . . . . . . . . . . . . . . . . . . . . . . . . . . 1 119 Piercing . | . . . . . . . . . . . . . . . . . . . . . . . . . . . . . . . . . . . Sneak Attacks 6 | . . . . . 4 . . . . . . . . . . . . . . . . . . . . . . . . . . . . 2 Combat Hostiles . | . . . . . . . . . . . . . . . . . . . . . . . . . . . . . . . . . . . Follow-up Attacks . | . . . . . . . . . . . . . . . . . . . . . . . . . . . . . . . . . . . Damage Inflicted 72097 | . 930 1025 1109 559 1604 18 2549 . 3015 2490 814 628 . 5961 1485 946 4653 576 1294 6347 1221 465 5086 2432 2117 . 2482 2683 2868 . 1846 1914 5584 7396 Guns 4543 | . 349 . 861 271 638 18 1577 . . 16 . . . . . . . . . . . . . . . . . . . . . . . 813 Cannons 41409 | . . 197 240 . . . 472 . 43 1329 591 56 . 1958 1485 946 4057 576 1287 4464 1221 465 4004 1570 1359 . 1932 2661 2608 . 1354 1126 4903 505 Explosions 18163 | . 552 787 . 288 304 . 368 . 2972 1141 223 572 . 3429 . . 526 . . 1731 . . 1047 862 758 . 550 . 260 . 492 788 513 . Melee 7458 | . . . . . 662 . . . . . . . . 574 . . . . . . . . . . . . . . . . . . 144 6078 Ramming 524 | . 29 41 8 . . . 132 . . 4 . . . . . . 70 . 7 152 . . 35 . . . . 22 . . . . 24 . Kinetic 4556 | . 176 197 1101 271 638 18 1995 . . 16 . . . . . . . . . . . . . . . . . . . . . . 144 . Thermal 41623 | . 256 . . 130 . . 54 . . 1437 591 56 . 1830 1485 946 4057 576 1287 4464 1221 465 5051 1862 1359 . 1932 2661 2608 . 1411 1126 4758 . Explosive 11868 | . 469 787 . 158 304 . 368 . 2972 822 223 572 . 3255 . . 526 . . 1412 . . . . . . . . . . . . . . Electromagnetic 5399 | . . . . . . . . . 43 211 . . . 302 . . . . . 319 . . . 570 758 . 550 . 260 . 435 788 658 505 Impact 574 | . . . . . . . . . . . . . . 574 . . . . . . . . . . . . . . . . . . . . Slashing 7109 | . . . . . 662 . . . . . . . . . . . . . . . . . . . . . . . . . . . . 6447 Piercing . | . . . . . . . . . . . . . . . . . . . . . . . . . . . . . . . . . . . Entropic 444 | . . . . . . . . . . . . . . . . . . . . . . . . . . . . . . . . . . 444 Highest Corruption 31 | . . . . . . . . . . . . . . . . . . . 2 11 . . . . . . . 4 4 4 2 . 13 31 Average Corruption 9 | . . . . . . . . . . . . . . . . . . . 1 2 . . . . . . . 2 4 4 1 . 8 26 Corruption Purged 2 | . . . . . . . . . . . . . . . . . . . 2 . . . . . . . . . . . . . . . Corruption Blocked 8 | . . . . . . . . . . . . . . . . . . . . . 8 . . . . . . . . . . . . . Effects 210 | . . . . . . . . . . . . . . . . . . . . 20 . . . . . . . 21 40 2 1 . 35 91 Message Errors 56 | . . . . . . . . . . . . . . . . . . . . 4 . . . . . . . 9 16 . . . 7 20 Matter Fused 42 | . . . . . . . . . . . . . . . . . . . . 4 . . . . . . . 2 10 1 1 . 4 20 Heat Flow Errors 33 | . . . . . . . . . . . . . . . . . . . . 4 . . . . . . . 5 7 1 . . 7 9 Energy Discharges 22 | . . . . . . . . . . . . . . . . . . . . 3 . . . . . . . . 1 . . . 5 13 Parts Rejected 2 | . . . . . . . . . . . . . . . . . . . . . . . . . . . . . . . . . . 2 Parts Fused 2 | . . . . . . . . . . . . . . . . . . . . . . . . . . . . . 1 . . . . 1 Data Loss (minor) 25 | . . . . . . . . . . . . . . . . . . . . 1 . . . . . . . 1 3 . . . 7 13 Data Loss (major) 7 | . . . . . . . . . . . . . . . . . . . . 1 . . . . . . . 1 . . . . 2 3 Misfires 2 | . . . . . . . . . . . . . . . . . . . . . . . . . . . . 2 . . . . . . Alerts 6 | . . . . . . . . . . . . . . . . . . . . . . . . . . . . 1 2 . . . 1 2 Misdirections 9 | . . . . . . . . . . . . . . . . . . . . 2 . . . . . . . . . . . . 2 5 Weapon Failures 4 | . . . . . . . . . . . . . . . . . . . . 1 . . . . . . . . . . . . . 3 Overload Shots 3 | . . . . . . . . . . 2 . . . 1 . . . . . . . . . . . . . . . . . . . . Effects 1 | . . . . . . . . . . 1 . . . . . . . . . . . . . . . . . . . . . . . . Heat Surge 1 | . . . . . . . . . . 1 . . . . . . . . . . . . . . . . . . . . . . . . Overflow Damage 2793 | . 78 31 6 30 7 . 21 . 69 40 20 9 . 256 168 37 163 . 107 295 31 . 445 27 1 . 6 130 86 . 88 58 309 275 Projectiles 1818 | . . 17 6 . . . . . . 21 4 . . 71 168 37 147 . 107 254 31 . 281 27 . . 6 130 86 . 88 58 279 . Explosions 560 | . 78 14 . 30 7 . 21 . 69 19 16 9 . 102 . . . . . . . . 164 . 1 . . . . . . . 30 . Melee 415 | . . . . . . . . . . . . . . 83 . . 16 . . 41 . . . . . . . . . . . . . 275 Knockbacks 13 | . . 1 1 . . . 7 . . . . . . 1 . . 1 . . . . . 1 . . . . . . . . . 1 . Impact 5 | . . . . . . . 1 . . . . . . 1 . . 1 . . . . . 1 . . . . . . . . . 1 . Kinetic 8 | . . 1 1 . . . 6 . . . . . . . . . . . . . . . . . . . . . . . . . . . Secondary . | . . . . . . . . . . . . . . . . . . . . . . . . . . . . . . . . . . . Self-Inflicted Damage 940 | . . 69 . 28 4 . 48 . . 46 45 . . 280 . . . . . 180 . . 52 . . . . . . . 121 . 67 . Shots 33 | . . 4 . 1 1 . 2 . . 1 1 . . 6 . . . . . 7 . . 1 . . . . . . . 5 . 4 . Rammed 36 | . 3 5 2 . . . 7 . . 1 . . . . . . . . 1 8 . . 6 . . . . 2 . . . . 1 . Targets Rammed 48 | . 4 5 3 . . . 11 . . 1 . . . . . . 5 . 1 9 . . 6 . . . . 2 . . . . 1 . Kicked 9 | . 1 . . . . . 3 . . . . . . . . . 5 . . . . . . . . . . . . . . . . . Crushed 3 | . . . 1 . . . 1 . . . . . . . . . . . . 1 . . . . . . . . . . . . . . Highest Temperature 652 | . 60 32 8 1 . 5 383 84 252 332 218 80 . 424 54 . 23 . . 242 5 . 10 74 230 . 164 198 204 73 17 9 652 533 Average Temperature 77 | . 26 14 3 1 . 5 91 44 108 92 63 32 . 105 33 . 7 . . 62 5 . 3 18 74 . 32 50 69 55 8 8 206 126 Received Heat Transfer 5262 | . 40 49 158 . . 18 358 . . 83 39 16 . 720 210 24 449 . . 714 61 . 93 106 28 . 365 55 130 6 115 158 943 324 Effects 5 | . . . . . . . 1 . . . . . . 1 . . . . . . . . . . . . . . . . . . 1 2 Energy Bleed 1 | . . . . . . . . . . . . . . . . . . . . . . . . . . . . . . . . . . 1 Interference 1 | . . . . . . . . . . . . . . 1 . . . . . . . . . . . . . . . . . . . . Matter Decay 1 | . . . . . . . . . . . . . . . . . . . . . . . . . . . . . . . . . . 1 Short Circuit 1 | . . . . . . . 1 . . . . . . . . . . . . . . . . . . . . . . . . . . . Damage (core) 1 | . . . . . . . . . . . . . . . . . . . . . . . . . . . . . . . . . 1 . Siege Activations 69 | . . . . . . . . . . 2 3 2 . 5 1 . . . 1 2 . . 6 6 8 . 3 8 3 . 4 3 11 1 Total Turns 1084 | . . . . . . . . . . 10 25 12 . 155 14 . . . 1 103 . . 67 71 84 . 90 106 43 . 46 25 227 5 Longest Duration 92 | . . . . . . . . . . 7 18 10 . 55 14 . . . 1 92 . . 23 31 26 . 62 24 29 . 15 10 34 5 Robots Corrupted 20 | . . . . . . . . . . 2 . . . 2 . . . . . . . . . 2 1 . 2 . 1 . 2 2 2 4 Combat Hostiles 18 | . . . . . . . . . . . . . . 2 . . . . . . . . . 2 1 . 2 . 1 . 2 2 2 4 Parts Fried 42 | . . . . . . . . . . 7 . . . . . . . . . . . . . 4 5 . 3 . 3 . 3 6 6 5 Impact Corruptions 6 | . . . . . . . . . . . . . . 3 . . 1 . . 2 . . . . . . . . . . . . . . Robots Melted 1 | . . . . . . . . . . 1 . . . . . . . . . . . . . . . . . . . . . . . . Combat Hostiles 1 | . . . . . . . . . . 1 . . . . . . . . . . . . . . . . . . . . . . . . Parts Melted 32 | . . . . . . . . . . 3 1 . . 13 1 . 3 . . 2 . . 1 1 1 . 2 2 1 . 1 . . . Heat Transferred 26326 | . 425 . . 150 . . 74 . . 1819 777 74 . 1625 825 500 2225 325 673 2487 675 250 2725 1125 920 . 1426 1802 1607 . 775 517 2525 . Parts Sabotaged . | . . . . . . . . . . . . . . . . . . . . . . . . . . . . . . . . . . . Parts Stolen . | . . . . . . . . . . . . . . . . . . . . . . . . . . . . . . . . . . . Parts Stripped . | . . . . . . . . . . . . . . . . . . . . . . . . . . . . . . . . . . . Power Chain Reactions 10 | . . . . . . . . . . 1 . . . 1 . . . . . 1 . . . 2 . . 2 . . . 1 . 2 . Missiles Intercepted . | . . . . . . . . . . . . . . . . . . . . . . . . . . . . . . . . . . . Alert | -11 -10 -10 -9 -9 -9 -8 -8 -7 -7 -7 -7 -7 -7 -7 -6 -6 -6 -6 -6 -6 -5 -5 -5 -5 -5 -5 -4 -4 -4 -4 -3 -3 -3 -3 ------- Run | Jun Mat Min Mat Min Exi Min Mat Fac Was Fac Low Low Zio Dee Pro Fac Ext Cet Arc Hub Fac Was Fac Upp Upp Zhi Pro Fac Upp War Pro Res Qua Sec Peak Influence 1827 | . 281 304 238 172 . . 402 78 77 908 . . . . . 100 637 830 461 1827 1230 432 1394 . . . . 333 . . . 221 482 1715 Initial 1100 | . . 39 44 51 . . . 33 27 . . . . . . . 42 294 332 28 1100 430 . . . . . . . . . 20 68 238 Average 326 | . 107 149 117 89 . . 193 60 36 451 . . . . . 54 378 509 68 1006 1033 234 698 . . . . 119 . . . 127 282 471 Maximum Alert Level 5 | . 1 1 1 . . . 2 . . 3 . . . . . . 2 3 2 5 4 2 4 . . . . 1 . . . 1 2 5 Low Security (%) 49 | 100 76 93 82 100 . 100 56 100 100 30 . . . . . 100 12 . 84 10 . 37 23 . . . . 66 . . . 94 30 4 Level 1 21 | . 23 6 17 . . . 42 . . 15 . . . . . . 50 63 8 . . 31 7 . . . . 33 . . . 5 35 51 Level 2 12 | . . . . . . . . . . 22 . . . . . . 37 4 6 10 . 31 1 . . . . . . . . . 33 37 Level 3 10 | . . . . . . . . . . 31 . . . . . . . 32 . 38 52 . 46 . . . . . . . . . . . Level 4 5 | . . . . . . . . . . . . . . . . . . . . 26 47 . 20 . . . . . . . . . . . Level 5 . | . . . . . . . . . . . . . . . . . . . . . . . . . . . . . . . . . . . High Security . | . . . . . . . . . . . . . . . . . . . . 12 . . . . . . . . . . . . . . Max Security . | . . . . . . . . . . . . . . . . . . . . . . . . . . . . . . . . . . 6 Squads Dispatched 88 | . 4 . 2 . . . 3 1 . 10 . . . . . 2 4 . . 12 3 . 11 . . . . 5 . . . 3 8 20 Investigation 13 | . 2 . 1 . . . 3 1 . 3 . . . . . 1 1 . . . . . 1 . . . . . . . . . . . Extermination 23 | . . . . . . . . . . 2 . . . . . 1 . . . . 2 . 6 . . . . 3 . . . . 4 5 Reinforcement 27 | . 2 . 1 . . . . . . 4 . . . . . . 2 . . 5 . . 2 . . . . 2 . . . 3 4 2 Assault 25 | . . . . . . . . . . 1 . . . . . . 1 . . 7 1 . 2 . . . . . . . . . . 13 Garrison . | . . . . . . . . . . . . . . . . . . . . . . . . . . . . . . . . . . . Intercept . | . . . . . . . . . . . . . . . . . . . . . . . . . . . . . . . . . . . Searches Triggered . | . . . . . . . . . . . . . . . . . . . . . . . . . . . . . . . . . . . Construction Impeded 6 | . . . . . . . . . . . . . . . . . 2 . . . . . 1 . . . . 1 . . . 1 1 . Haulers Reinforced 2 | . . . . . . . . . . 2 . . . . . . . . . . . . . . . . . . . . . . . . Active Scanning Responses . | . . . . . . . . . . . . . . . . . . . . . . . . . . . . . . . . . . . Cargo Convoy Interrupts 1 | . . . . . . . . . . . . . . . . . . . . . 1 . . . . . . . . . . . . . Stealth | -11 -10 -10 -9 -9 -9 -8 -8 -7 -7 -7 -7 -7 -7 -7 -6 -6 -6 -6 -6 -6 -5 -5 -5 -5 -5 -5 -4 -4 -4 -4 -3 -3 -3 -3 --------- Run | Jun Mat Min Mat Min Exi Min Mat Fac Was Fac Low Low Zio Dee Pro Fac Ext Cet Arc Hub Fac Was Fac Upp Upp Zhi Pro Fac Upp War Pro Res Qua Sec Distress Signals 28 | . 3 . . . . . 2 . . 4 . . . . . . 1 1 . 3 2 . 2 . . . . 3 . 1 . 4 2 . Communications Jammed 33 | . . . . . . . 30 . . 3 . . . . . . . . . . . . . . . . . . . . . . . . Distress Signals 33 | . . . . . . . 30 . . 3 . . . . . . . . . . . . . . . . . . . . . . . . Times Spotted 698 | . 17 23 14 5 41 3 50 1 5 28 6 5 . 57 8 7 44 17 11 66 18 . 46 20 21 . 11 30 17 10 14 14 36 53 Peak Tracking Total 37 | . 6 8 3 4 11 3 8 . 2 5 3 4 . 37 7 3 6 11 2 21 7 . 6 7 5 . 4 7 7 8 4 5 6 11 Tactical Retreats 34 | . . 1 1 . 11 . 1 . . . . . . . 1 . 5 . . 2 3 . . 2 1 . . 2 . . . . . 4 Traps | -11 -10 -10 -9 -9 -9 -8 -8 -7 -7 -7 -7 -7 -7 -7 -6 -6 -6 -6 -6 -6 -5 -5 -5 -5 -5 -5 -4 -4 -4 -4 -3 -3 -3 -3 ------- Run | Jun Mat Min Mat Min Exi Min Mat Fac Was Fac Low Low Zio Dee Pro Fac Ext Cet Arc Hub Fac Was Fac Upp Upp Zhi Pro Fac Upp War Pro Res Qua Sec Traps Triggered 12 | . 1 . . . . . . 1 . 4 . . . . . . . . . . 1 . 1 . . . . 1 . . . . 3 . Indirectly . | . . . . . . . . . . . . . . . . . . . . . . . . . . . . . . . . . . . Trap Hack Attempts . | . . . . . . . . . . . . . . . . . . . . . . . . . . . . . . . . . . . Triggered . | . . . . . . . . . . . . . . . . . . . . . . . . . . . . . . . . . . . Disarmed . | . . . . . . . . . . . . . . . . . . . . . . . . . . . . . . . . . . . Reprogrammed . | . . . . . . . . . . . . . . . . . . . . . . . . . . . . . . . . . . . Reused . | . . . . . . . . . . . . . . . . . . . . . . . . . . . . . . . . . . . Traps Extracted . | . . . . . . . . . . . . . . . . . . . . . . . . . . . . . . . . . . . Installed . | . . . . . . . . . . . . . . . . . . . . . . . . . . . . . . . . . . . Triggered 14 | . . . . . . . . . . . . . . . . . . . . . 3 . . . 3 . . . . 8 . . . . Machines | -11 -10 -10 -9 -9 -9 -8 -8 -7 -7 -7 -7 -7 -7 -7 -6 -6 -6 -6 -6 -6 -5 -5 -5 -5 -5 -5 -4 -4 -4 -4 -3 -3 -3 -3 ---------- Run | Jun Mat Min Mat Min Exi Min Mat Fac Was Fac Low Low Zio Dee Pro Fac Ext Cet Arc Hub Fac Was Fac Upp Upp Zhi Pro Fac Upp War Pro Res Qua Sec Machines Disabled 97 | . 3 3 . 1 7 . 1 2 . 6 1 . . 3 . . 5 2 2 22 1 . 15 4 . . 1 2 2 1 . 1 6 6 Max in Single Turn 15 | . 2 2 . 1 2 . 1 1 . 1 1 . . 1 . . 1 2 1 15 1 . 6 3 . . 1 1 1 1 . 1 1 1 Garrison Access 4 | . . . . . . . . . . . . . . . . . . . . 2 . . 1 . . . . 1 . . . . . . Network Hub 1 | . . . . . . . . . . . . . . . . . . . . 1 . . . . . . . . . . . . . . Machines Repaired . | . . . . . . . . . . . . . . . . . . . . . . . . . . . . . . . . . . . Machines Sabotaged . | . . . . . . . . . . . . . . . . . . . . . . . . . . . . . . . . . . . Overloaded Fab Kills . | . . . . . . . . . . . . . . . . . . . . . . . . . . . . . . . . . . . Hacking | -11 -10 -10 -9 -9 -9 -8 -8 -7 -7 -7 -7 -7 -7 -7 -6 -6 -6 -6 -6 -6 -5 -5 -5 -5 -5 -5 -4 -4 -4 -4 -3 -3 -3 -3 --------- Run | Jun Mat Min Mat Min Exi Min Mat Fac Was Fac Low Low Zio Dee Pro Fac Ext Cet Arc Hub Fac Was Fac Upp Upp Zhi Pro Fac Upp War Pro Res Qua Sec Machines Accessed 91 | . 6 . 3 . 2 . 12 3 . 9 . 1 . . . 3 10 . . 11 3 . 7 2 . 6 . 2 2 4 . 1 1 3 Terminals 51 | . 4 . 2 . . . 8 2 . 4 . . . . . 2 10 . . 9 2 . 3 1 . . . . . . . 1 1 2 Fabricators 7 | . . . . . . . . 1 . 2 . . . . . 1 . . . . 1 . 1 . . . . 1 . . . . . . Repair Stations 4 | . . . . . . . 1 . . 2 . . . . . . . . . . . . 1 . . . . . . . . . . . Recycling Units 5 | . 2 . 1 . . . 1 . . 1 . . . . . . . . . . . . . . . . . . . . . . . . Scanalyzers 3 | . . . . . . . 2 . . . . . . . . . . . . . . . 1 . . . . . . . . . . . Garrison Access 5 | . . . . . . . . . . . . . . . . . . . . 2 . . 1 . . . . 1 . . . . . 1 Total Hacks 256 | . 17 . 4 . 2 . 48 9 . 17 . 1 . . . 7 22 . . 27 24 . 20 6 . 19 . 5 12 5 . 2 1 8 Successful 121 | . 6 . 1 . 2 . 26 2 . 6 . 1 . . . 4 5 . . 10 7 . 5 6 . 19 . 3 12 5 . 1 . . Failed 135 | . 11 . 3 . . . 22 7 . 11 . . . . . 3 17 . . 17 17 . 15 . . . . 2 . . . 1 1 8 Catastrophic 39 | . 1 . 1 . . . 5 . . 5 . . . . . 1 5 . . 8 4 . 5 . . . . . . . . . . 4 Database Lockouts . | . . . . . . . . . . . . . . . . . . . . . . . . . . . . . . . . . . . Manual 102 | . 11 . 4 . 1 . 25 4 . 2 . . 1 . . 2 8 1 . 18 14 . 8 . . . . 2 . . . . 1 . Terminals 151 | . 14 . 3 . . . 30 5 . 10 . . . . . 2 22 . . 24 20 . 10 5 . . . . . . . 2 1 3 Fabricators 20 | . . . . . . . . 4 . 2 . . . . . 5 . . . . 4 . 2 . . . . 3 . . . . . . Repair Stations 8 | . . . . . . . 2 . . 4 . . . . . . . . . . . . 2 . . . . . . . . . . . Recycling Units 6 | . 3 . 1 . . . 1 . . 1 . . . . . . . . . . . . . . . . . . . . . . . . Scanalyzers 20 | . . . . . . . 15 . . . . . . . . . . . . . . . 5 . . . . . . . . . . . Garrison Access 11 | . . . . . . . . . . . . . . . . . . . . 3 . . 1 . . . . 2 . . . . . 5 Terminal Hacks 82 | . 4 . . . 2 . 11 . . 2 . 1 . . . . 5 . . 5 7 . 2 6 . 19 . . 12 5 . 1 . . Record 28 | . . . . . 1 . . . . . . . . . . . . . . . . . . 5 . 7 . . 11 4 . . . . Part Schematic 4 | . . . . . . . . . . . . . . . . . . . . . . . . . . 4 . . . . . . . . Robot Analysis 9 | . 2 . . . . . 3 . . . . . . . . . . . . . . . . . . 4 . . . . . . . . Prototype ID Bank 5 | . 1 . . . . . . . . . . . . . . . . . . . . . . . . 4 . . . . . . . . Open Door 6 | . . . . . . . . . . . . 1 . . . . 1 . . . . . . 1 . . . . 1 1 . 1 . . Branch Access Points 4 | . . . . . . . 1 . . 1 . . . . . . . . . . 1 . 1 . . . . . . . . . . . Alert Level 4 | . . . . . . . . . . 1 . . . . . . 2 . . . 1 . . . . . . . . . . . . . Unreport Threat 6 | . 1 . . . . . 3 . . . . . . . . . 1 . . 1 . . . . . . . . . . . . . . Locate Traps 1 | . . . . . . . . . . . . . . . . . . . . . 1 . . . . . . . . . . . . . Transport Status 1 | . . . . . . . . . . . . . . . . . . . . . 1 . . . . . . . . . . . . . Hauler Manifests 2 | . . . . . . . . . . . . . . . . . . . . . 1 . 1 . . . . . . . . . . . Zone Layout 11 | . . . . . . . 4 . . . . . . . . . 1 . . 4 2 . . . . . . . . . . . . . Derelict Proto ID Bank 1 | . . . . . 1 . . . . . . . . . . . . . . . . . . . . . . . . . . . . . Fabricator Hacks 5 | . . . . . . . . 1 . . . . . . . 3 . . . . . . . . . . . 1 . . . . . . Network Status 3 | . . . . . . . . 1 . . . . . . . 1 . . . . . . . . . . . 1 . . . . . . Load Schematic 1 | . . . . . . . . . . . . . . . . 1 . . . . . . . . . . . . . . . . . . Build 1 | . . . . . . . . . . . . . . . . 1 . . . . . . . . . . . . . . . . . . Repair Station Hacks 4 | . . . . . . . 2 . . 2 . . . . . . . . . . . . . . . . . . . . . . . . Scan Component 3 | . . . . . . . 1 . . 2 . . . . . . . . . . . . . . . . . . . . . . . . Repair 1 | . . . . . . . 1 . . . . . . . . . . . . . . . . . . . . . . . . . . . Recycling Unit Hacks . | . . . . . . . . . . . . . . . . . . . . . . . . . . . . . . . . . . . Scanalyzer 11 | . . . . . . . 10 . . . . . . . . . . . . . . . 1 . . . . . . . . . . . Insert Component 6 | . . . . . . . 5 . . . . . . . . . . . . . . . 1 . . . . . . . . . . . Analyze 5 | . . . . . . . 5 . . . . . . . . . . . . . . . . . . . . . . . . . . . Garrison Access Hacks 3 | . . . . . . . . . . . . . . . . . . . . 1 . . 1 . . . . 1 . . . . . . Seal Access 3 | . . . . . . . . . . . . . . . . . . . . 1 . . 1 . . . . 1 . . . . . . Unauthorized Hacks 16 | . 2 . 1 . . . 3 1 . 2 . . . . . 1 . . . 4 . . 1 . . . . 1 . . . . . . Terminals 7 | . . . . . . . 2 . . . . . . . . . . . . 4 . . 1 . . . . . . . . . . . Track 2 | . . . . . . . . . . . . . . . . . . . . 2 . . . . . . . . . . . . . . Assimilate 1 | . . . . . . . 1 . . . . . . . . . . . . . . . . . . . . . . . . . . . Detonate 2 | . . . . . . . . . . . . . . . . . . . . 2 . . . . . . . . . . . . . . Disrupt 2 | . . . . . . . 1 . . . . . . . . . . . . . . . 1 . . . . . . . . . . . Fabricators 4 | . . . . . . . . 1 . 1 . . . . . 1 . . . . . . . . . . . 1 . . . . . . Liberate 1 | . . . . . . . . . . 1 . . . . . . . . . . . . . . . . . . . . . . . . Haulers 3 | . . . . . . . . 1 . . . . . . . 1 . . . . . . . . . . . 1 . . . . . . Repair Stations . | . . . . . . . . . . . . . . . . . . . . . . . . . . . . . . . . . . . Recycling Units 5 | . 2 . 1 . . . 1 . . 1 . . . . . . . . . . . . . . . . . . . . . . . . Tunnel 5 | . 2 . 1 . . . 1 . . 1 . . . . . . . . . . . . . . . . . . . . . . . . Scanalyzers . | . . . . . . . . . . . . . . . . . . . . . . . . . . . . . . . . . . . Garrison Access . | . . . . . . . . . . . . . . . . . . . . . . . . . . . . . . . . . . . Data Cores Recovered 3 | . . . . . . . 1 . . . . . . . . 1 . . . . . . 1 . . . . . . . . . . . Used 2 | . . . . . . . 1 . . . . . . . . 1 . . . . . . . . . . . . . . . . . . Hacking Detections 65 | . 4 . 2 . . . 11 3 . 7 . . . . . 3 9 . . 11 3 . 5 1 . . . 1 . . . 1 1 3 Full Trace Events 9 | . . . . . . . 3 1 . 2 . . . . . 1 1 . . . . . . 1 . . . . . . . . . . Feedback Events . | . . . . . . . . . . . . . . . . . . . . . . . . . . . . . . . . . . . Feedback Blocked . | . . . . . . . . . . . . . . . . . . . . . . . . . . . . . . . . . . . Robot Schematics Acquired 1 | . . . . . . . . . . . . . . . . . . . . . . . . . . . . . . . . . . 1 Robots Built . | . . . . . . . . . . . . . . . . . . . . . . . . . . . . . . . . . . . Authchips . | . . . . . . . . . . . . . . . . . . . . . . . . . . . . . . . . . . . Time . | . . . . . . . . . . . . . . . . . . . . . . . . . . . . . . . . . . . Total Robot Build Rating . | . . . . . . . . . . . . . . . . . . . . . . . . . . . . . . . . . . . Part Schematics Acquired 10 | . . . . . . . 4 . . . . . . . . . . . . . . . . . . 4 . . . . . . . 2 Parts Built 1 | . . . . . . . . . . . . . . . . 1 . . . . . . . . . . . . . . . . . . Authchips . | . . . . . . . . . . . . . . . . . . . . . . . . . . . . . . . . . . . Time 117 | . . . . . . . . . . . . . . . . 117 . . . . . . . . . . . . . . . . . . Total Part Build Rating 7 | . . . . . . . . . . . . . . . . 7 . . . . . . . . . . . . . . . . . . Parts Repaired 1 | . . . . . . . 1 . . . . . . . . . . . . . . . . . . . . . . . . . . . Time 86 | . . . . . . . 86 . . . . . . . . . . . . . . . . . . . . . . . . . . . Parts Recycled . | . . . . . . . . . . . . . . . . . . . . . . . . . . . . . . . . . . . Recycled Matter . | . . . . . . . . . . . . . . . . . . . . . . . . . . . . . . . . . . . Retrieved Matter . | . . . . . . . . . . . . . . . . . . . . . . . . . . . . . . . . . . . Retrieved Components . | . . . . . . . . . . . . . . . . . . . . . . . . . . . . . . . . . . . Parts Scanalyzed 5 | . . . . . . . 4 . . . . . . . . . . . . . . . 1 . . . . . . . . . . . Part Schematics Acquired 4 | . . . . . . . 4 . . . . . . . . . . . . . . . . . . . . . . . . . . . Parts Damaged 2 | . . . . . . . 1 . . . . . . . . . . . . . . . 1 . . . . . . . . . . . Bothacking | -11 -10 -10 -9 -9 -9 -8 -8 -7 -7 -7 -7 -7 -7 -7 -6 -6 -6 -6 -6 -6 -5 -5 -5 -5 -5 -5 -4 -4 -4 -4 -3 -3 -3 -3 ------------ Run | Jun Mat Min Mat Min Exi Min Mat Fac Was Fac Low Low Zio Dee Pro Fac Ext Cet Arc Hub Fac Was Fac Upp Upp Zhi Pro Fac Upp War Pro Res Qua Sec Used RIF Installer . | . . . . . . . . . . . . . . . . . . . . . . . . . . . . . . . . . . . Robots Hacked 4 | . . . . . 4 . . . . . . . . . . . . . . . . . . . . . . . . . . . . . Non-combat 3 | . . . . . 3 . . . . . . . . . . . . . . . . . . . . . . . . . . . . . Combat 1 | . . . . . 1 . . . . . . . . . . . . . . . . . . . . . . . . . . . . . Robot Hacks Applied 4 | . . . . . 4 . . . . . . . . . . . . . . . . . . . . . . . . . . . . . parse_system 4 | . . . . . 4 . . . . . . . . . . . . . . . . . . . . . . . . . . . . . Relay Couplers Released 6 | . . . . . . . . . . . . . . . . . . . . 2 4 . . . . . . . . . . . . . Machine Destruction 2 | . . . . . . . . . . . . . . . . . . . . 2 . . . . . . . . . . . . . . Programmers 4 | . . . . . . . . . . . . . . . . . . . . . 4 . . . . . . . . . . . . . Fabnet Peak Effective % . | . . . . . . . . . . . . . . . . . . . . . . . . . . . . . . . . . . . Robots Rewired 28 | . . . . . . . . . . . . . . . 2 . 24 . . . . . . . . . . . 2 . . . . . Allies Hacked 5 | . . . . . . . . . . 2 . . . . . . . . . . . . 3 . . . . . . . . . . . Hacks Repelled . | . . . . . . . . . . . . . . . . . . . . . . . . . . . . . . . . . . . Allies | -11 -10 -10 -9 -9 -9 -8 -8 -7 -7 -7 -7 -7 -7 -7 -6 -6 -6 -6 -6 -6 -5 -5 -5 -5 -5 -5 -4 -4 -4 -4 -3 -3 -3 -3 -------- Run | Jun Mat Min Mat Min Exi Min Mat Fac Was Fac Low Low Zio Dee Pro Fac Ext Cet Arc Hub Fac Was Fac Upp Upp Zhi Pro Fac Upp War Pro Res Qua Sec Total Allies 78 | . . . . . . . . . 19 . . . . . 2 . 30 5 . . . 20 . . . . . . 2 . . . . . Largest Group 20 | . . . . . . . . . 19 19 2 2 2 2 2 . 16 16 11 6 . 20 19 . . . . . 2 . . . . . Highest-Rated Group 808 | . . . . . . . . . 465 465 53 53 53 49 50 . 593 808 752 495 . 735 685 . . . . . 79 . . . . . Highest-Rated Ally 159 | . . . . . . . . . 35 35 28 28 28 25 30 . 159 159 159 96 . 50 46 . . . . . 49 . . . . . Total Orders 4 | . . . . . . . . . . . . . . . . . . . . . . . . . . . . 1 3 . . . . . EXPLORE 4 | . . . . . . . . . . . . . . . . . . . . . . . . . . . . 1 3 . . . . . Ally Attacks 758 | . . . . . . . . . 5 266 . . . . . . 129 74 21 79 . . 176 . . . . . 8 . . . . . Total Damage 15516 | . . . . . . . . . 118 4223 . . . . . . 2267 1912 701 2824 . . 3275 . . . . . 196 . . . . . Kills 116 | . . . . . . . . . 1 34 . . . . . . 17 15 3 22 . . 23 . . . . . 1 . . . . . Allies Corrupted 7 | . . . . . . . . . . 4 . . . . . . . . . . . . 3 . . . . . . . . . . . Allies Melted 1 | . . . . . . . . . . . . . . . . . . . . . . . . . . . . . . 1 . . . . Intel | -11 -10 -10 -9 -9 -9 -8 -8 -7 -7 -7 -7 -7 -7 -7 -6 -6 -6 -6 -6 -6 -5 -5 -5 -5 -5 -5 -4 -4 -4 -4 -3 -3 -3 -3 ------- Run | Jun Mat Min Mat Min Exi Min Mat Fac Was Fac Low Low Zio Dee Pro Fac Ext Cet Arc Hub Fac Was Fac Upp Upp Zhi Pro Fac Upp War Pro Res Qua Sec Robot Analysis Total 9 | . 2 . . . . . 3 . . . . . . . . . . . . . . . . . . 4 . . . . . . . . Derelict Logs Recovered 13 | . . 1 . 1 . . . . . . . . 2 . 2 . . . . . . . . 1 2 . 1 . 3 . . . . . Drone Launches 7 | . . . . . . . . . . . . . . . . . . . . . . . . . . . . 3 4 . . . . . Drone Recoveries 5 | . . . . . . . . . . . . . . . . . . . . . . . . . . . . 2 3 . . . . . Exploration | -11 -10 -10 -9 -9 -9 -8 -8 -7 -7 -7 -7 -7 -7 -7 -6 -6 -6 -6 -6 -6 -5 -5 -5 -5 -5 -5 -4 -4 -4 -4 -3 -3 -3 -3 ------------- Run | Jun Mat Min Mat Min Exi Min Mat Fac Was Fac Low Low Zio Dee Pro Fac Ext Cet Arc Hub Fac Was Fac Upp Upp Zhi Pro Fac Upp War Pro Res Qua Sec Turns Passed 54288 | 9 740 726 896 561 2037 157 1317 84 746 1370 1582 777 1670 3882 2191 568 2450 385 5163 1233 1053 1273 2679 3069 3531 443 3074 1547 2049 1751 1280 647 1580 1768 Spaces Moved 22099 | 7 344 409 440 317 1222 123 629 42 362 729 975 485 1074 2031 868 240 775 172 392 597 406 399 992 1206 1386 179 1199 535 614 733 361 274 591 991 Core 333 | . . . . . . . . . . . . . . . . . . . 218 . . . . . . . . . . . . . . 115 Treads 17836 | . 212 409 440 317 752 . 408 42 362 729 975 485 1074 1384 . . . 47 174 597 406 399 992 1206 1386 179 1199 535 614 733 361 274 525 620 Legs 3930 | 7 132 . . . 470 123 221 . . . . . . 647 868 240 775 125 . . . . . . . . . . . . . . 66 256 Wheels . | . . . . . . . . . . . . . . . . . . . . . . . . . . . . . . . . . . . Hover . | . . . . . . . . . . . . . . . . . . . . . . . . . . . . . . . . . . . Flight . | . . . . . . . . . . . . . . . . . . . . . . . . . . . . . . . . . . . Fastest Speed 30 | 120 120 160 160 160 120 126 126 160 160 150 150 150 150 150 180 180 180 160 160 160 160 160 160 240 240 240 240 240 160 160 160 155 152 30 Average Speed 206 | 120 144 160 160 160 150 126 149 160 160 158 150 150 152 165 180 186 191 196 1283 160 180 228 239 240 240 240 240 240 238 228 238 157 174 114 Slowest Speed 2200 | 120 160 160 160 160 190 126 240 160 160 240 150 150 155 240 180 210 210 210 2200 160 240 240 240 240 240 240 240 240 240 240 240 160 270 166 Overloaded Moves . | . . . . . . . . . . . . . . . . . . . . . . . . . . . . . . . . . . . Propulsion Burnouts . | . . . . . . . . . . . . . . . . . . . . . . . . . . . . . . . . . . . Robots Hopped . | . . . . . . . . . . . . . . . . . . . . . . . . . . . . . . . . . . . Cave-ins Triggered 1 | . . . . . . . . . . . . . . . . . . . . . . . . . . . . . . . . . . 1 Teleports 3 | . . . . . . . . . . . . . . . . . . . . . . . . . . . . . . 1 . . . 2 Exploration Rate (%) 62 | 2 56 94 40 68 91 36 51 2 96 22 89 75 85 80 93 9 85 66 78 67 11 95 35 96 98 60 96 23 94 90 65 15 66 61 Regions Visited 34 Branch Regions 22 Pre-discovered Areas 15 | . 2 2 1 . 1 . 1 . . 1 . . 2 . . . . . . . . . . 1 . 3 . . 1 . . . . . Known Exits Taken 6 | . . . . . . . . . . 1 . . . . . . . . . . . . 1 . . . . 1 . . 1 1 1 . Unknown Exits Taken 24 | 1 1 1 1 1 1 1 1 . . . 1 1 1 1 1 1 1 1 1 1 . . . 1 1 1 1 . 1 1 . . . . Scrap Searched 45 | . . 2 . 1 . . . . . . 14 3 5 . 5 . . . . . . . . 4 3 . 5 . 2 . 1 . . . Spaces Dug 279 | . . 23 . . . . . . . . 19 22 2 19 10 5 1 . . 7 4 . 24 14 11 . 34 10 14 12 . 14 12 22 Terrain Destroyed 1195 | . 51 79 . 17 15 . 32 . 102 36 39 42 2 55 33 11 64 1 12 219 19 2 70 38 27 . 45 27 27 16 22 17 47 28 Melee 40 | . . . . . . . . . . . 15 . 2 1 . . . . . . . . . . . . . . . . . . 1 21 Projectile 438 | . . . . . . . 1 . . 11 6 . . 4 33 11 27 1 12 26 19 2 47 35 27 . 38 27 27 16 8 17 36 7 AOE 717 | . 51 79 . 17 15 . 31 . 102 25 18 42 . 50 . . 37 . . 193 . . 23 3 . . 7 . . . 14 . 10 . Terrain Rammed . | . . . . . . . . . . . . . . . . . . . . . . . . . . . . . . . . . . . Walls Destroyed . | . . . . . . . . . . . . . . . . . . . . . . . . . . . . . . . . . . . Machines Disabled . | . . . . . . . . . . . . . . . . . . . . . . . . . . . . . . . . . . . Actions | -11 -10 -10 -9 -9 -9 -8 -8 -7 -7 -7 -7 -7 -7 -7 -6 -6 -6 -6 -6 -6 -5 -5 -5 -5 -5 -5 -4 -4 -4 -4 -3 -3 -3 -3 --------- Run | Jun Mat Min Mat Min Exi Min Mat Fac Was Fac Low Low Zio Dee Pro Fac Ext Cet Arc Hub Fac Was Fac Upp Upp Zhi Pro Fac Upp War Pro Res Qua Sec Total 28580 | 7 535 452 549 343 1353 123 860 58 513 861 1037 523 1101 2442 1433 338 1612 209 481 729 686 757 1151 1304 1513 194 1298 702 1108 791 741 435 979 1362 Wait 3523 | . 129 . 22 . 17 . 45 11 103 21 18 26 . 146 506 59 483 4 40 24 203 325 42 38 68 . 17 61 379 3 355 95 177 106 Move 22068 | 6 343 408 439 316 1221 122 628 42 361 728 974 484 1073 2030 867 239 774 171 391 597 406 398 991 1205 1385 178 1198 534 613 732 360 273 590 991 Hop . | . . . . . . . . . . . . . . . . . . . . . . . . . . . . . . . . . . . Pick Up 276 | . 14 5 9 3 22 . 26 . 7 9 1 1 5 61 3 5 3 8 1 2 18 4 7 5 1 3 4 8 2 4 . 6 16 13 Fast Attach 164 | . 2 1 6 2 4 . 14 . 3 11 . . 3 27 4 1 3 2 7 . 3 4 4 . . 5 . 8 2 8 . 5 17 18 Attach 105 | . 2 2 1 5 1 . 8 1 . 3 . . . 14 . 3 3 3 2 2 1 1 . . . . 3 6 2 . 1 1 16 24 Detach 98 | . . . . 1 3 . 2 . . 1 . . 1 10 6 2 9 2 4 . 5 1 1 . . . . 5 5 8 1 3 17 11 Swap 154 | 1 3 6 8 2 8 . 8 2 4 16 6 4 2 16 2 2 6 . . 1 4 2 1 5 5 1 3 4 4 4 1 5 10 8 Drop 385 | . 7 7 17 . 22 . 31 . 16 19 2 . 9 57 4 9 9 11 12 4 19 16 12 4 1 7 3 10 10 9 . 9 28 21 Fire 1284 | . 31 18 44 14 34 1 87 2 19 52 20 8 . 65 34 18 72 8 23 91 27 6 87 47 53 . 70 64 53 23 23 38 101 51 Melee 186 | . . . . . 21 . . . . . 16 . 8 16 . . . . . . . . . . . . . . . . . . 6 119 Ram . | . . . . . . . . . . . . . . . . . . . . . . . . . . . . . . . . . . . Kick 9 | . 1 . . . . . 3 . . . . . . . . . 5 . . . . . . . . . . . . . . . . . Crush 38 | . 3 5 3 . . . 8 . . 1 . . . . . . . . 1 8 . . 6 . . . . 2 . . . . 1 . Escape Stasis . | . . . . . . . . . . . . . . . . . . . . . . . . . . . . . . . . . . . Rewire 290 | . . . . . . . . . . . . . . . 7 . 245 . . . . . . . . . . . 38 . . . . . Trap . | . . . . . . . . . . . . . . . . . . . . . . . . . . . . . . . . . . . Miscellaneous . | . . . . . . . . . . . . . . . . . . . . . . . . . . . . . . . . . . . Route ------- -11/Junkyard -10/Materials (discovered 2 exits: *Mat / [*Min]) -10/Mines (discovered 2 exits: *Mat x2) -9/Materials (discovered 2 exits: *Mat / [*Min]) -9/Mines (discovered 3 exits: *Mat x2 / *Exi) -9/Exiles -8/Mines -8/Materials -7/Factory -7/Waste -7/Factory (discovered 4 exits: *Sto x2 / *Low x2) -7/Lower Caves -7/Lower Caves -7/Zion (discovered 2 exits: [*Dee] / [*Pro]) -7/Deep Caves -6/Proximity Caves -6/Factory (discovered 2 exits: Low / *Ext) -6/Extension (discovered 2 exits: *Fac / *Cet) -6/Cetus (discovered 2 exits: *Fac / [*Arc]) -6/Archives (discovered 3 exits: *Fac / *Hub x2) -6/Hub_04(d) (discovered 3 exits: *Fac x3) -5/Factory (discovered 2 exits: Upp x2) -5/Waste -5/Factory (discovered 3 exits: *Fac / *Upp x2) -5/Upper Caves -5/Upper Caves (discovered 2 exits: *Fac / *Zhi) -5/Zhirov -4/Proximity Caves -4/Factory (discovered 2 exits: *Res / *Upp) -4/Upper Caves (discovered 2 exits: [*Upp] / *War) -4/Warlord -3/Proximity Caves -3/Research (discovered 3 exits: *Res x2 / *Qua) -3/Quarantine -3/Section 7 (discovered 1 exit: *Res) History --------- Turn | Location | Event 3 | -11/Junkyard | Discovered new exit (range 2) 10 | -11/Junkyard | Entered Materials 302 | -10/Materials | Build established: Mutant 342 | -10/Materials | Discovered new exit (range 7) 703 | -10/Materials | Discovered new exit (range 11) 750 | -10/Materials | Entered Mines 790 | -10/Mines | Discovered new exit (range 9) 840 | -10/Mines | Discovered new exit (range 10) 842 | -10/Mines | Assembled infested the area 847 | -10/Mines | Assisted by a Guerilla fighting off Assembled 923 | -10/Mines | Joined a pair of Derelicts in attacking an 0b10 outpost 1458 | -10/Mines | Learned location of Storage (-7) 1476 | -10/Mines | Entered Materials 1476 | -9/Materials | Evolved 2 slots: Propulsion x1, Utility x1 1853 | -9/Materials | Discovered new exit (range 6) 2244 | -9/Materials | Discovered new exit (range 12) 2372 | -9/Materials | Entered Mines 2424 | -9/Mines | Destroyed YI-UF0 2428 | -9/Mines | Discovered new exit (range 10) 2439 | -9/Mines | Discovered new exit (range 10) 2452 | -9/Mines | Lost 6 parts (1p3n1u1w) 2591 | -9/Mines | Received a Rocket Launcher from a helpful Derelict 2786 | -9/Mines | Learned Materials trap positions 2845 | -9/Mines | Deemed a non-threat by the Exiles lab entrance 2845 | -9/Mines | Discovered new exit (range 5) 2933 | -9/Mines | Entered Exiles 2986 | -9/Exiles | Met 8R-AWN 3013 | -9/Exiles | Met EX-HEX 3076 | -9/Exiles | Met EX-DEC 3082 | -9/Exiles | Learned location of Zion (-7) 3108 | -9/Exiles | Met EX-BIN 3132 | -9/Exiles | Aligned with FarCom system 3133 | -9/Exiles | Given EX-Vault access code 3172 | -9/Exiles | Opened EX-Vault 3185 | -9/Exiles | Found Longsword +1 3219 | -9/Exiles | Warned to stay clear of 0b10 Research branches 3272 | -9/Exiles | Found Gui. Plasma Cannon 3276 | -9/Exiles | Found Supersonic Drone Bay 3828 | -9/Exiles | Discovered new exit (range 10) 4099 | -9/Exiles | Attacked by the Exiles 4207 | -9/Exiles | Core integrity fell below 50% 4218 | -9/Exiles | Destroyed 8R-AWN 4233 | -9/Exiles | Found Exp. Targeting Computer 4255 | -9/Exiles | Found 8R-AWN's Armor/EX 4402 | -9/Exiles | Destroyed EX-HEX 4448 | -9/Exiles | Destroyed EX-DEC 4469 | -9/Exiles | Destroyed EX-BIN 4777 | -9/Exiles | Found Exp. Core Analyzer 4970 | -9/Exiles | Entered Mines 5037 | -8/Mines | Discovered new exit (range 14) 5064 | -8/Mines | Build established: Scavenger-Mutant 5127 | -8/Mines | Entered Materials 5127 | -8/Materials | Evolved 2 slots: Propulsion x1, Utility x1 5128 | -8/Materials | Loaded intel: 20 trap records 5726 | -8/Materials | Repaired Broken Adv. Transmission Jammer? 6087 | -8/Materials | Build established: Mutant 6351 | -8/Materials | Discovered new exit (range 15) 6444 | -8/Materials | Entered Factory 6444 | -7/Factory | Evolved 2 slots: Power x1, Utility x1 6528 | -7/Factory | Sucked down chute 6528 | -7/Factory | Entered Waste 6536 | -7/Waste | Spotted C-40 Crusher 6543 | -7/Waste | Destroyed C-40 Crusher 6549 | -7/Waste | Spotted C-40 Crusher 6550 | -7/Waste | Spotted C-40 Crusher 6556 | -7/Waste | Destroyed C-40 Crusher 6563 | -7/Waste | Destroyed C-40 Crusher 6592 | -7/Waste | Spotted C-40 Crusher 6593 | -7/Waste | Spotted C-40 Crusher 6614 | -7/Waste | Spotted C-40 Crusher 6621 | -7/Waste | Destroyed C-40 Crusher 6628 | -7/Waste | Destroyed C-40 Crusher 6704 | -7/Waste | Build established: Scavenger-Mutant 6762 | -7/Waste | Warlord forces began an assault 6808 | -7/Waste | Found Damper Plating 6836 | -7/Waste | Discovered new exit (range 15) 7141 | -7/Waste | Found Hvy. Reactive Plating 7274 | -7/Waste | Entered Factory 7274 | -7/Factory | Accompanied by 19 allies 7471 | -7/Factory | Discovered new exit (range 9) 7641 | -7/Factory | Build established: Mutant 8147 | -7/Factory | P-60 Hacker assimilated allied ZL-49P(g) 8461 | -7/Factory | Identified exit to Storage 8461 | -7/Factory | Identified exit to Lower Caves 8474 | -7/Factory | First assault squad dispatched 8644 | -7/Factory | Entered Lower Caves 8644 | -7/Lower Caves | Accompanied by 2 allies 8907 | -7/Lower Caves | Spotted B-75 Beast 8916 | -7/Lower Caves | Destroyed B-75 Beast 9307 | -7/Lower Caves | Discovered new exit (range 6) 10226 | -7/Lower Caves | Entered another Lower Caves area 10226 | -7/Lower Caves | Accompanied by 2 allies 10708 | -7/Lower Caves | Attracted the attention of an 0b10 checkpoint 10778 | -7/Lower Caves | Discovered new exit (range 15) 11003 | -7/Lower Caves | Entered Zion 11003 | -7/Zion | Accompanied by 2 allies 11179 | -7/Zion | Discovered new exit (range 14) 11413 | -7/Zion | Found Prototype Launcher 11413 | -7/Zion | Identified Rocket Array 11848 | -7/Zion | Received a hallucinogenic algorithm 11989 | -7/Zion | Learned Factory terminal intel 12360 | -7/Zion | Discovered new exit (range 5) 12361 | -7/Zion | Saw the warning signs outside the Deep Caves entrance 12673 | -7/Zion | Entered Deep Caves 12673 | -7/Deep Caves | Accompanied by 2 allies 12958 | -7/Deep Caves | Attacked by Z-Imprinter 12987 | -7/Deep Caves | Destroyed Z-Imprinter 13020 | -7/Deep Caves | Found Prototype Device 13020 | -7/Deep Caves | Identified Zio. Metafield Generator 13050 | -7/Deep Caves | Found Prototype Protection 13050 | -7/Deep Caves | Identified Zio. Weapon Casing 13177 | -7/Deep Caves | Found Prototype Protection 13177 | -7/Deep Caves | Identified Zio. Heavy Carapace 13199 | -7/Deep Caves | Z-Facility disabled 13566 | -7/Deep Caves | Found Zio. Weapon Casing 13660 | -7/Deep Caves | Found Zio. Weapon Casing 13738 | -7/Deep Caves | Found Zio. Weapon Casing 13855 | -7/Deep Caves | Build established: Scavenger-Mutant 14194 | -7/Deep Caves | Discovered new exit (range 7) 14340 | -7/Deep Caves | Destroyed as-32403 14444 | -7/Deep Caves | Spotted as-52325 14481 | -7/Deep Caves | Destroyed as-52325 14854 | -7/Deep Caves | Found Zio. Weapon Casing 15032 | -7/Deep Caves | Triggered Deep Caves wall 15032 | -7/Deep Caves | Spotted AS-48233 15032 | -7/Deep Caves | Spotted AS-75393 15033 | -7/Deep Caves | Exposed GOLEM chamber 15050 | -7/Deep Caves | Destroyed AS-75393 15053 | -7/Deep Caves | Destroyed AS-48233 15092 | -7/Deep Caves | Found GOLEM Unit 15101 | -7/Deep Caves | Found GOLEM Unit 15108 | -7/Deep Caves | Destroyed 38 combat bots 15528 | -7/Deep Caves | Build established: Golem 15546 | -7/Deep Caves | Found GOLEM Unit 15551 | -7/Deep Caves | Found GOLEM Unit 16256 | -7/Deep Caves | Found Zio. Weapon Casing 16555 | -7/Deep Caves | Entered Proximity Caves 17435 | -6/Proximity Caves | Attracted the attention of an 0b10 outpost 17439 | -6/Proximity Caves | Core integrity fell below 50% 17495 | -6/Proximity Caves | Destroyed 7 combat bots 17679 | -6/Proximity Caves | Learned Factory emergency access door positions 18044 | -6/Proximity Caves | Discovered new exit (range 12) 18083 | -6/Proximity Caves | Learned Factory terminal intel 18746 | -6/Proximity Caves | Entered Factory 18746 | -6/Factory | Evolved 2 slots: Utility x2 18747 | -6/Factory | Identified exit to Lower Caves 18749 | -6/Factory | Loaded intel: 27 terminal locations 19241 | -6/Factory | Discovered new exit (range 13) 19285 | -6/Factory | Fabricated Adv. Transmission Jammer? 19314 | -6/Factory | Entered Extension 19694 | -6/Extension | Rescued a captive Derelict 20363 | -6/Extension | Build established: Commander-Golem 20557 | -6/Extension | Spotted B-75 Beast 20565 | -6/Extension | Destroyed B-75 Beast 20579 | -6/Extension | Spotted B-75 Beast 20600 | -6/Extension | Allies destroyed B-75 Beast 20935 | -6/Extension | Rescued a captive Derelict 20935 | -6/Extension | Rescued a captive Derelict 20987 | -6/Extension | Rescued A7 21273 | -6/Extension | Rescued a captive Derelict 21275 | -6/Extension | Rescued a captive Derelict 21321 | -6/Extension | Discovered new exit (range 10) 21323 | -6/Extension | Discovered new exit (range 6) 21764 | -6/Extension | First assault squad dispatched 21764 | -6/Extension | Entered Cetus 21764 | -6/Cetus | Accompanied by 16 allies (A7) 21769 | -6/Cetus | Acquired a Cetus Manufacturing Module code from A7 21790 | -6/Cetus | Spotted Cetus Guard 21792 | -6/Cetus | Spotted Cetus Guard 21792 | -6/Cetus | Spotted Cetus Guard 21793 | -6/Cetus | Spotted Cetus Guard 21798 | -6/Cetus | Allies destroyed Cetus Guard 21800 | -6/Cetus | Allies destroyed Cetus Guard 21807 | -6/Cetus | Allies destroyed Cetus Guard 21810 | -6/Cetus | Allies destroyed Cetus Guard 21913 | -6/Cetus | Started Cetus Manufacturing Module 21932 | -6/Cetus | Escorted A7 to Cetus Mainframe 21938 | -6/Cetus | Manufactured an Enhanced Grunt 21960 | -6/Cetus | Discovered new exit (range 16) 21963 | -6/Cetus | Manufactured an Enhanced Grunt 21988 | -6/Cetus | Manufactured an Enhanced Grunt 22008 | -6/Cetus | Spotted Cetus Guard 22008 | -6/Cetus | Spotted Cetus Guard 22011 | -6/Cetus | Spotted Cetus Guard 22012 | -6/Cetus | Destroyed Cetus Guard 22013 | -6/Cetus | Manufactured an Enhanced Grunt 22014 | -6/Cetus | Spotted Cetus Guard 22024 | -6/Cetus | Destroyed Cetus Guard 22027 | -6/Cetus | Allies destroyed Cetus Guard 22029 | -6/Cetus | Allies destroyed Cetus Guard 22038 | -6/Cetus | Manufactured an Enhanced Grunt 22043 | -6/Cetus | Discovered new exit (range 15) 22054 | -6/Cetus | Met Revision 17 22149 | -6/Cetus | Entered Archives 22149 | -6/Archives | Accompanied by 11 allies (A7) 22154 | -6/Archives | Received a hacking code to weaken MAIN.C 23042 | -6/Archives | Discovered new exit (range 15) 27006 | -6/Archives | Discovered new exit (range 16) 27208 | -6/Archives | Discovered new exit (range 15) 27312 | -6/Archives | Entered Hub_04(d) 27312 | -6/Hub_04(d) | Accompanied by 6 allies 27418 | -6/Hub_04(d) | Spotted B-75 Beast 27434 | -6/Hub_04(d) | Destroyed B-75 Beast 27593 | -6/Hub_04(d) | Discovered new exit (range 15) 27662 | -6/Hub_04(d) | First assault squad dispatched 27712 | -6/Hub_04(d) | Discovered new exit (range 9) 27918 | -6/Hub_04(d) | Discovered new exit (range 14) 27934 | -6/Hub_04(d) | Build established: Scavenger-Golem 28293 | -6/Hub_04(d) | Network Hub disabled 28305 | -6/Hub_04(d) | Spotted Lightning 28334 | -6/Hub_04(d) | Spotted Lightning 28368 | -6/Hub_04(d) | Spotted Lightning 28387 | -6/Hub_04(d) | High security lockdown imminent 28387 | -6/Hub_04(d) | Destroyed Lightning 28412 | -6/Hub_04(d) | System corruption reached 10% 28423 | -6/Hub_04(d) | Destroyed Lightning 28444 | -6/Hub_04(d) | Destroyed 8 combat bots 28467 | -6/Hub_04(d) | High security lockdown engaged 28545 | -6/Hub_04(d) | Entered Factory 28545 | -5/Factory | Evolved 2 slots: Utility x2 28546 | -5/Factory | Loaded intel: 26 terminal locations 28573 | -5/Factory | Lost 4 parts (1n1u2w) 29398 | -5/Factory | Identified exit to Upper Caves 29420 | -5/Factory | Cargo convoy interrupted 29445 | -5/Factory | First assault squad dispatched 29598 | -5/Factory | Sucked down chute 29598 | -5/Factory | Entered Waste 29599 | -5/Waste | Joined by Warlord forces that had cleared the area 29950 | -5/Waste | Found Adv. Powered Armor 30012 | -5/Waste | Discovered new exit (range 14) 30240 | -5/Waste | Build established: Golem 30871 | -5/Waste | Entered Factory 30871 | -5/Factory | Accompanied by 19 allies 31695 | -5/Factory | P-70 Sage assimilated allied 8G-H4N(g) 32081 | -5/Factory | Discovered new exit (range 16) 32371 | -5/Factory | First assault squad dispatched 32776 | -5/Factory | Destroyed 10 combat bots 33056 | -5/Factory | Build established: Mutant 33550 | -5/Factory | Entered Upper Caves 35424 | -5/Upper Caves | Attracted the attention of an 0b10 checkpoint 35816 | -5/Upper Caves | Attracted the attention of an 0b10 base 35976 | -5/Upper Caves | Learned Extension garrison access intel 35976 | -5/Upper Caves | Learned Factory garrison access intel 35976 | -5/Upper Caves | Learned Extension terminal intel 35976 | -5/Upper Caves | Learned 6 Proximity Caves zone layouts 35976 | -5/Upper Caves | Learned 6 Lower Caves zone layouts 36024 | -5/Upper Caves | Discovered new exit (range 4) 36619 | -5/Upper Caves | Entered another Upper Caves area 37212 | -5/Upper Caves | Discovered new exit (range 15) 37285 | -5/Upper Caves | Acquired the password to a Derelict Tinkerer's latest research 37427 | -5/Upper Caves | Attracted the attention of an 0b10 checkpoint 37461 | -5/Upper Caves | Learned Factory terminal intel 37546 | -5/Upper Caves | Caught by Unaware searching for contraband prototypes 37907 | -5/Upper Caves | Learned Factory non-interactive machine intel 38114 | -5/Upper Caves | Spotted B-75 Beast 38146 | -5/Upper Caves | Destroyed B-75 Beast 38331 | -5/Upper Caves | Caught by Unaware searching for contraband prototypes 38727 | -5/Upper Caves | Discovered new exit (range 15) 40150 | -5/Upper Caves | Entered Zhirov 40150 | -5/Zhirov | Discovered new exit (range 3) 40194 | -5/Zhirov | Met Zhirov 40237 | -5/Zhirov | Learned location of Quarantine (-3) 40237 | -5/Zhirov | Learned location of Testing (-2) 40237 | -5/Zhirov | Learned location of Command (-1) 40268 | -5/Zhirov | Zhirov requested help retrieving the SGEMP Prototype 40385 | -5/Zhirov | Found Alien Artifact 40413 | -5/Zhirov | Found Alien Artifact 40413 | -5/Zhirov | Identified Integrated Dissipator 40413 | -5/Zhirov | Installed Integrated Dissipator, increased core heat dissipation (+20) 40593 | -5/Zhirov | Entered Proximity Caves 42268 | -4/Proximity Caves | Learned 8 Research zone layouts 42268 | -4/Proximity Caves | Spotted B-86 Titan 42335 | -4/Proximity Caves | Destroyed B-86 Titan 42393 | -4/Proximity Caves | Discovered new exit (range 3) 42690 | -4/Proximity Caves | Found Alien Artifact 43667 | -4/Proximity Caves | Entered Factory 43667 | -4/Factory | Evolved 2 slots: Power x1, Utility x1 43668 | -4/Factory | Loaded intel: 248 non-interactive machine locations 43669 | -4/Factory | Loaded intel: 26 terminal locations 43670 | -4/Factory | Loaded intel: 4 garrison access locations 43704 | -4/Factory | Discovered new exit (range 72) 43724 | -4/Factory | Discovered new exit (range 68) 44138 | -4/Factory | Spotted B-86 Titan 45145 | -4/Factory | Identified exit to Research 45210 | -4/Factory | Identified exit to Upper Caves 45214 | -4/Factory | Entered Upper Caves 45223 | -4/Upper Caves | Attracted the attention of an 0b10 outpost 45275 | -4/Upper Caves | Destroyed 7 combat bots 45701 | -4/Upper Caves | Learned 4 Research zone layouts 45727 | -4/Upper Caves | Learned location of 1 exit from Research 45876 | -4/Upper Caves | Build established: Golem 46161 | -4/Upper Caves | Learned location of 1 exit from Research 46192 | -4/Upper Caves | Learned Extension security intel 46192 | -4/Upper Caves | Learned Armory security intel 46192 | -4/Upper Caves | Learned Research terminal intel 46192 | -4/Upper Caves | Learned Extension terminal intel 46192 | -4/Upper Caves | Learned Armory terminal intel 46192 | -4/Upper Caves | Learned Factory garrison access intel 46240 | -4/Upper Caves | Destroyed OT-9KB(g) 46580 | -4/Upper Caves | Discovered new exit (range 52) 47117 | -4/Upper Caves | A Derelict revealed a hidden shortcut to "reach the base" 47263 | -4/Upper Caves | Entered Warlord 47310 | -4/Warlord | Discovered new exit (range 9) 47326 | -4/Warlord | Identified Dimensional Node Initializer 47326 | -4/Warlord | Initialized slip node 47406 | -4/Warlord | System corruption cleaned by Quarantine Array 48293 | -4/Warlord | Learned Research garrison access intel 48295 | -4/Warlord | Learned 4 Command zone layouts 48298 | -4/Warlord | Learned Research emergency access door positions 48298 | -4/Warlord | Learned Testing emergency access door positions 48423 | -4/Warlord | Found Prototype Device 48423 | -4/Warlord | Identified Minesniffer Drone Bay 48427 | -4/Warlord | Found Minesniffer Drone Bay 48445 | -4/Warlord | Found Minesniffer Drone Bay 48472 | -4/Warlord | Met Warlord 48478 | -4/Warlord | Warlord's base attacked by MAIN.C 48508 | -4/Warlord | Found Prototype Reactor 48508 | -4/Warlord | Identified Vortex Chain Reactor 48516 | -4/Warlord | Found Exp. Targeting Computer 48535 | -4/Warlord | Found Prototype Device 48535 | -4/Warlord | Identified Exp. Focal Shield 48727 | -4/Warlord | Found Prototype Energy Gun 48727 | -4/Warlord | Identified Vortex Shotgun 48732 | -4/Warlord | Found Vortex Shotgun 48808 | -4/Warlord | Build established: Mutant 48828 | -4/Warlord | Warlord forces counterattacked 48997 | -4/Warlord | Spotted Striker 49000 | -4/Warlord | Spotted Striker 49012 | -4/Warlord | Identified Transdimensional Reconstructor 49012 | -4/Warlord | Warped through subspace to slip node 49014 | -4/Warlord | Entered Proximity Caves 49073 | -3/Proximity Caves | Attracted the attention of an 0b10 checkpoint 49275 | -3/Proximity Caves | Build established: Scavenger-Mutant 49875 | -3/Proximity Caves | Received a Behemoth hack from an annoying Tinkerer 50284 | -3/Proximity Caves | Discovered exit to Research (range 3) 50294 | -3/Proximity Caves | Entered Research 50294 | -3/Research | Evolved 2 slots: Propulsion x2 50295 | -3/Research | Identified exit to Research 50296 | -3/Research | Identified exit to Quarantine 50298 | -3/Research | Loaded intel: 25 terminal locations 50299 | -3/Research | Loaded intel: 4 garrison access locations 50494 | -3/Research | Revision forces began assault on 0b10 50584 | -3/Research | Met up with Revision 17++ 50737 | -3/Research | Found Corrupted Quantum Capacitor 50932 | -3/Research | Destroyed Revision 17++ 50941 | -3/Research | Entered Quarantine 50963 | -3/Quarantine | Found Alien Impact Weapon 51240 | -3/Quarantine | Build established: Mutant 51300 | -3/Quarantine | Lost 3 parts (1p1u1w) 51356 | -3/Quarantine | Found Alien Artifact 51356 | -3/Quarantine | Identified Core Reset Matrix 51356 | -3/Quarantine | Identified Core Stripper 51356 | -3/Quarantine | Used Core Reset Matrix 51360 | -3/Quarantine | Detected hypermatrix surge 51360 | -3/Quarantine | Sensed 12 artifacts in vicinity 51824 | -3/Quarantine | Found Subatomic Replicator 51965 | -3/Quarantine | System corruption reached 10% 51997 | -3/Quarantine | Lost 3 parts (1p1n1u) 52056 | -3/Quarantine | Found Phase Redirector 52184 | -3/Quarantine | Found Sigix Broadsword 52199 | -3/Quarantine | Lost 3 parts (1p1u1w) 52277 | -3/Quarantine | Spotted Fortress 52329 | -3/Quarantine | Core integrity fell below 50% 52332 | -3/Quarantine | Destroyed Fortress 52348 | -3/Quarantine | Found Unknown Protection 52348 | -3/Quarantine | Identified Hvy. Insulated Plating 52351 | -3/Quarantine | Found Vortex Chain Reactor 52355 | -3/Quarantine | Found Vortex Chain Reactor 52359 | -3/Quarantine | Found Prototype Protection 52359 | -3/Quarantine | Identified Centrium Heavy Armor Plating 52365 | -3/Quarantine | Found Prototype Device 52367 | -3/Quarantine | Identified Thermal Barrier 52370 | -3/Quarantine | Found Prototype Device 52370 | -3/Quarantine | Identified Exp. Force Field 52433 | -3/Quarantine | Build established: Alien-Mutant 52515 | -3/Quarantine | Discovered new exit (range 5) 52520 | -3/Quarantine | Identified exit to Section 7 52521 | -3/Quarantine | Entered Section 7 52522 | -3/Section 7 | Sensed 22 artifacts in vicinity 53151 | -3/Section 7 | Crushed by falling debris 53151 | -3/Section 7 | System corruption reached 30% 53366 | -3/Section 7 | Found Integrity Redistributor 53396 | -3/Section 7 | Spotted S7 Guard 53436 | -3/Section 7 | Found Core Membrane 53436 | -3/Section 7 | Installed Core Membrane, gained immunity to corruption 53478 | -3/Section 7 | Destroyed S7 Guard 53591 | -3/Section 7 | Found Integrated Mediator 53591 | -3/Section 7 | Installed Integrated Mediator, increased core attachment efficiency. 53688 | -3/Section 7 | Discovered exit to Research (range 16) 53797 | -3/Section 7 | First assault squad dispatched 54018 | -3/Section 7 | Found Integrated Dissipator 54018 | -3/Section 7 | Installed Integrated Dissipator, increased core heat dissipation (+20) 54076 | -3/Section 7 | Spotted Alpha 7 54115 | -3/Section 7 | Core integrity fell below 20% 54122 | -3/Section 7 | Spotted Alpha 7 54136 | -3/Section 7 | Spotted B-99 Colossus 54144 | -3/Section 7 | Lost 14 parts (3p3n6u2w) 54174 | -3/Section 7 | Integrated with Sigix Exoskeleton 54219 | -3/Section 7 | Spotted Executioner 54227 | -3/Section 7 | Spotted Executioner 54240 | -3/Section 7 | Door terminal overloaded 54244 | -3/Section 7 | Found Transdimensional Reconstructor 54245 | -3/Section 7 | Found Transdimensional Reconstructor 54249 | -3/Section 7 | Found Hpw. Transdimensional Reconstructor 54251 | -3/Section 7 | Warped through subspace 54254 | -3/Section 7 | Spotted Striker 54254 | -3/Section 7 | Spotted Striker 54260 | -3/Section 7 | Spotted Executioner 54289 | -3/Section 7 | Warped through subspace 54289 | -3/Section 7 | Destroyed by G-67 Veteran with Plasma Rifle Last Messages --------------- 54200_ System corrupted: Matter fused (-5). 54200_ Penetrated by Slug. 54218_ System corrupted: Matter fused (-8). 54218_ O-32 Director: "IFF HANDSHAKE FAILED. SECURING TERMINAL." 54219_ Quantum Shear penetrates Sealed Heavy Doors. 54229_ Slug penetrates Wing Frame. 54237_ System corrupted: Energy discharge (-52). 54240_ System overload, Sealed Heavy Doors opened. [Achievement: Just Shoot The Terminal] 54240_ Door Terminal disabled. 54244_ Acquired Transdimensional Reconstructor. 54249_ Dropped Com. HERF Cannon. 54249_ Acquired Hpw. Transdimensional Reconstructor. 54251_ Warped through subspace. 54255_ System corrupted: Sigix Sheargun rejected. 54255_ Acquired Sigix Sheargun. 54274_ &G9WGOEMM3SFQ9OQMW4F 54277_ Quantum Shear penetrates FTL Facilitator. 54281_ ALERT: Assault forces dispatched. 54289_ Warped through subspace. Map ----- +----------------------------------------------------+ | #### #?? | | "" ""#### ?? | | " ""#### ?? | | """" "" ""#### ??? | | """"""""" """"" ""#### ??? | | "" " """""" ""#### ??? | | """"""""""" """"" ""### ??? | | " " """" ""### ]?? | | """""""""""" ""###""??? | | "" " ""#####??? | | """""""""""" ""#####??? | | ""#####??? | | ""#####??? | | ####???? | | """""""" """"" ####???? | | """"""""" """ ###???? | | """"""""" " """ ##????? | | """"" ##?????? | | " """"" """##?????? | | " """#??????? | | """ """"???????? | | " """"???????? | | """#??????? | | """#??????? | | g """#??????? | | g g X """"##?????? | | b """"""" """"##?????? | | """""""" ### """"""" """##?????? | | """"""""""""### !! """"""" """##?????? | | ##################+++################?????? | | ###############"""% ! ""##############????? | | ###############"""|=%"""##############????? | | ###############"""=!!"""#############?????? | | ###############"""!=="""#############?????? | | ###############"""! """#############?????? | | ###############""" ""##############????? | | ###############"" ""#############?????? | | ###############" "#############?????? | | ###############" "#############?????? | | ###############" "#############?????? | | ###############"" T"#############?????? | | ###############" "!" "##############????? | | ###############" " " "##############????? | | ?##############" "#" "#############?????? | | ?##############"""###"""#############?????? | | ?####################################?????? | | ??###################################?????? | | ??###################################?????? | | ??##################################??????? | | ???#################################??????? | +----------------------------------------------------+ Best States ------------- Heat Dissipation 176 Coolant Potential 100 Energy Generation 89 Energy Capacity 1950 Matter Stores 300 Matter Capacity 300 Sight Range 16 Robot Scan Range 18 Terrain Scan Range 24 Terrain Scan Density 85 Jamming Range 16 Power Amplification 20 Additional Mass Support 20 Armor Coverage 3400 Resistance: KI 50 Resistance: TH 50 Resistance: EX 50 Resistance: EM 90 Resistance: I 50 Resistance: S 50 Resistance: P 50 Weapon Shielding 100 Weapon Cycling 25 Phase Shifting 15 Evasion (%) 69 Targeting Accuracy 12 Core Analysis 8 Recoil Reduction 6 Particle Charging 30 Offensive Hacking 20 Item Schematics ----------------- Exp. Matter Compressor | -3/Section 7 | Archive Imp. Matter Neutralizer | -3/Section 7 | Archive Robot Schematics ------------------ R-10 Processor | -3/Section 7 | Archive Fabricated ------------ Adv. Transmission Jammer | x1 | -6/Factory Alien Tech Used ----------------- Integrated Dissipator Dimensional Node Initializer Transdimensional Reconstructor Core Reset Matrix Phase Redirector Sigix Broadsword Core Stripper Core Membrane Integrated Mediator Sigix Exoskeleton Sigix Sheargun High-powered Transdimensional Reconstructor Achievements -------------- Just Shoot The Terminal Main Advantage Revolutionary Research Challenges ------------ None Game ------ Seed DataPiercingDoomcannon Manual? 0 Play Time 04:44:16 Cumulative 255.8 hours Start 2023.09.19 @ 19:46:59 End 2023.09.21 @ 23:02:22 Sessions 5 Manual Loads 0 Difficulty Rogue Special Mode None Game No. 331 Rogue 331 Adventurer 0 Explorer 0 Win Type - Total 7 Types 6/0/0/1/0/0/0/0/0 Lore% 81 Gallery% 87 Achievement% 70 Wizard Run 0 Options --------- ASCII 0 Keyboard 0 Movement Numpad Keybinds 0 Fullscreen 2 Font 18/SmallcapsGlow Map View 76x50 Tactical HUD 1 Map Filters NONE Filters NONE Steam 1 RUN: 57f1377e-3eff-4d42-aad4-9df19da40e3d